{"text_format":"1","workbook":"xlsx","n_sheets":18,"sheets":["はじめに","定期調査報告書の注意","①定期調査報告書","②資格者追加別紙","③付近見取図","④調査結果書","⑤建物履歴調査票","作業用","⑥調査結果表","調査結果表の注意","⑦任意様式","⑧別添1様式(A3)調査結果図（配置図、各階平面図）","⑨別添2様式(A4)関係写真","⑩建築設備の保守点検に関する調書","⑪定期調査報告概要書","⑫資格者追加別紙概要書","改善結果報告書","改善内容"],"not_rendered":{"charts":0,"images":159,"macros":1,"external_links":0,"defined_names":16,"comments":2,"pivot_tables":0},"unopened":[],"bounds":{"document_bytes":16777216,"sheet_cells":100000,"rows_first":2000,"rows_last":500,"rows_between":2000,"halvings":0,"cell_chars":16384,"cell_head_chars":4096},"cells_cut":0,"cells_raw":0,"read":"whole","date_system":"1900"}

{"sheet":"はじめに","index":0,"n_rows":70,"n_cols":17,"rows_kept":70,"cut":false,"hidden":false,"merged":[[7,16,7,18],[37,5,38,8],[4,2,4,8],[5,2,5,8],[32,2,33,7],[31,2,31,7]]}
[]
[]
[null,null,"はじめに　　",null,null,null,null,null,null,null,null,null,"　　複数棟報告書を作成する場合のイメージ"]
[]
[null,null,"このエクセルファイルはマクロを使用しているので、ファイルを開く際\n「セキュリティの警告」というダイアログボックスが表示されます。\nこのエクセルファイルに入力する場合は、「マクロを有効にする」\nボタンをクリックしてご使用下さい。\n",null,null,null,null,null,null,null,null,null,null,null,null,"(1) エクセルファイルをダウンロード"]
[null,null,"また、マクロのセキュリティを「高」に設定されている方は、「中」に設定\nしなおしてからファイルを一旦閉じて、再度 開きなおしてください。\nなお、入力作業が終わりましたらセキュリティを「高」に設定しなおすことを\nお勧めします。\n"]
[null,null,"※　詳しくは注意事項シートをご覧ください。",null,null,null,null,null,null,null,null,null,"(2) ファイルコピー",null,null,"定期調査報告書･建築（Ａ棟）"]
[null,null,null,null,null,null,null,null,null,null,null,null,null,null,null,null,"(3) Ａ棟のデータ･項目入力\n　　一部のみ提出の書類入力"]
[null,null,"入力方法について"]
[null,"・","日付、面積等の数字は半角数字で入力してください。",null,null,null,null,null,null,null,null,null,null,null,null,"定期調査報告書･建築（Ｂ棟）"]
[null,null,"日付、面積等の数字を削除する場合、マウスを右クリックして【数式と値のクリア】を選択してください。",null,null,null,null,null,null,null,null,null,null,null,null,null,"(3) Ｂ棟のデータ･項目入力"]
[null,"・","丸印（○）をつける項目に丸印を付ける場合または消す場合は、項目位置に"]
[null,null,"マウスカーソルを移動させてクリックすると、丸印の表示と非表示が切り替わります。",null,null,null,null,null,null,null,null,null,null,null,null,"定期調査報告書･建築（Ｃ棟）"]
[null,null,"報告区分別調査項目一覧表の「指摘なし」の項目についてはクリックするごとに、",null,null,null,null,null,null,null,null,null,null,null,null,null,"(3) Ｃ棟のデータ･項目入力"]
[null,null,"「○、－、空白」が切り替わります。"]
[null,null,"（マウスカーソルが　　　　マークに変わった場所です）"]
[null,"・","チェックボックス（□）にチェックマーク（レ）を付ける場合または消す場合は、ボックス"]
[null,null,"（□）の上にマウスカーソルを移動させてクリックすると、チェックマーク（レ）の表示と"]
[null,null,"非表示が切り替わります。"]
[]
[null,null,"・建築物定期調査報告書で求める図書について"]
[null,null,"①定期報告書（第１～４面）",null,null,null," "]
[null,null,"③付近見取図（方位、道路および目標となる地物を明示してください。）"]
[null,null,"④建築物調査結果書"]
[null,null,"⑤建物履歴調査票　　",null,null,null," "]
[null,null,"⑥別記（Ａ４）調査結果表 ",null,null,null," "]
[null,null,"⑦任意調査結果表"," ",null,null," "," "]
[null,null,"⑧別添１様式（Ａ３）調査結果図　（配置図、各階平面図）"]
[null,null,"⑨別添２様式（Ａ４）関係写真"]
[null,null,"⑩建築設備の保守点検に関する調書"]
[null,null,"　"]
[null,null,"※平図面に記入を必要とする事項（適宜凡例を作り、その記号を平面図に示してください。）"]
[null,null,"建物の寸法、各室の用途、防災設備（旧：乙防）又は特定防火設備（旧：甲防）の区別、煙感、熱感連動の区別とも）昇降機の位置、ＰＳ、ＤＳの位置、非常用照明の位置、防火区画、排煙口、防煙区画（垂れ壁）、非常用進入口及び避難用器具の位置、その他必要な事項"]
[]
[null,null,"⑪定期報告概要書（第1, ２面）",null,"２部提出"]
[]
[null,null,"定期調査報告書における改善すべき事項について、改善した場合に提出してください"]
[null,null,"･改善結果結果書（建築物）",null,null,"２部提出"]
[null,null,"･改善内容"]
[]
[null,null,"・作成についての注意事項"]
[null,null,"このエクセルファイルの中の以下のシート（ページ）については、棟ごとに作成してください。"]
[null,null," ","・定期報告書（第２～４面）"]
[null,null," ","・建物履歴調査票　　　"]
[null,null," ","・別記（Ａ４）調査結果表 ",null,null,null,null,null,null,"　"]
[null,null," ","・任意調査結果表",null,null,null,null,null,null," "]
[null,null," ","・別添２様式（Ａ４）関係写真　"]
[null,null," ","・建築設備の保守点検に関する調書"]
[null,null," ","・定期報告概要書（第２面）"]
[null,null," "]
[null,null,"複数棟作成する場合は、ダウンロードしたエクセルファイル全体を棟数分コピーしてから"]
[null,null,"作成してください。"]
[null,null,"作業中ファイルのシートの追加･コピーは絶対にしないでください。"]
[null,null,"＜チェックのクリックが作動しない、エラー表示が出る等、障害が発生します。＞"]
[]
[null,null,"図（写真・イラストなどを含む）を挿入・貼り付けする方法について"]
[null,null,"　付近見取図、建物履歴調査票、別添1様式（A3)調査結果図および別添2様式（A4)関係写"]
[null,null,"　真に図を挿入・貼り付けをする場合は以下の手順を参考にしてください。"]
[]
[null,null,"（１）図のファイルを指定してExcelシートに挿入する場合"]
[null,null,"　　挿入できる範囲にあるボタン「図をファイルから挿入」または「写真をファイルから挿入」を"]
[null,null,"　クリックして、該当のファイルを選択します。"]
[null,null,"　　図が挿入された後、図の場所や大きさを調整してください。"]
[]
[null,null,"（２）　Word、PowerPointなどで作成した図やホームページ上の図を貼り付ける場合"]
[null,null,"　　該当の図をメニューコマンドの[コピー]によりコピーした後、貼り付けるExcelシート上に"]
[null,null,"　　メニューコマンドの[貼り付け]により貼り付けます。"]
[null,null,"　　貼り付けた後、図の場所や大きさを調整してください。"]
[null,null,"　　なお、ファイルの図も編集ソフトで画面上に表示すれば、この方法でコピー＆貼り付けする"]
[null,null,"　　ことができます。"]

{"sheet":"定期調査報告書の注意","index":1,"n_rows":143,"n_cols":3,"rows_kept":143,"cut":false,"hidden":false,"merged":[[0,0,0,2]]}
["（注意)"]
["1.各面共通関係"]
[null,"①","　※印のある欄は記入しないでください。"]
[null,"②","　数字は算用数字を、単位はメートル法を用いてください。"]
[null,"③","記入欄が不足する場合は、枠を拡大、行を追加して記入するか、別紙に必要な事項を記入し添"]
[null,null,"えてください。"]
["2.第一面関係"]
[null,"①","　調査者が２人以上のときは、代表となる調査者を調査者氏名欄に記入してください。"]
[null,"②","　１欄及び２欄は、所有者又は管理者が法人のときは、「ロ」はそれぞれ法人の名称及び代表"]
[null,null,"者氏名を、「ニ」はそれぞれ法人の所在地を記入してください。"]
[null,"③","　３欄は、代表となる調査者及び当該建築物の調査を行ったすべての調査者について記入して"]
[null,null,"ください。当該建築物の調査を行った調査者が１人の場合は、その他の調査者欄は削除して構"]
[null,null,"いません。"]
[null,"④","　３欄の「イ」は、調査者の有する資格について記入してください。調査者が特定建築物調査"]
[null,null,"員である場合は、特定建築物調査員資格者証の交付番号を「特定建築物調査員」の番号欄に記"]
[null,null,"入してください。"]
[null,"⑤","　３欄の「ニ」は、調査者が法人に勤務している場合は、調査者の勤務先について記入し、勤"]
[null,null,"務先が建築士事務所のときは、事務所登録番号を併せて記入してください。"]
[null,"⑥","　３欄の「ホ」から「ト」までは、調査者が法人に勤務している場合は、調査者の勤務先につ"]
[null,null,"いて記入し、調査者が法人に勤務していない場合は、調査者の住所について記入してください。"]
[null,"⑦","　第三面の２欄のいずれかの「イ」において「要是正の指摘あり」のチェックボックスに「レ」"]
[null,null,"マークを入れたときは、５欄の「イ」の「要是正の指摘あり」のチェックボックスに「レ」マ"]
[null,null,"ークを入れ、それ以外のときは、「指摘なし」のチェックボックスに「レ」マークを入れてく"]
[null,null,"ださい。また、第三面の２欄の「イ」の「要是正の指摘あり」のチェックボックスに「レ」マ"]
[null,null,"ークを入れたものの全てにおいて、「既存不適格」のチェックボックスに「レ」マークを入れ"]
[null,null,"たときは、併せて５欄の「イ」の「既存不適格」のチェックボックスに「レ」マークを入れて"]
[null,null,"ください。"]
[null,"⑧","　５欄の「ロ」は、指摘された事項のうち特に報告すべき事項があれば記入してください。"]
[null,"⑨","　５欄の「ハ」は、第三面の２欄のいずれかの「ハ」において改善予定があるとしているとき"]
[null,null,"は「有」のチェックボックスに「レ」マークを入れ、第三面の２欄の「ハ」に記入された改善"]
[null,null,"予定年月のうち最も早いものを併せて記入してください。"]
[null,"⑩","　５欄の「ニ」は、指摘された事項以外に特に報告すべき事項があれば記入してください。"]
["3.第二面関係"]
[null,"①","　この書類は、建築物ごとに作成してください。"]
[null,"②","　敷地が複数の地域にまたがるときは、１欄の「イ」は、該当するすべてのチェックボックス"]
[null,null,"に「レ」マークを入れてください。建築基準法第22条第１項の規定により地域指定がされてい"]
[null,null,"る場合、災害危険区域に指定されている場合その他建築基準法又はそれに基づく命令により地"]
[null,null,"域等の指定がされている場合は、「その他」のチェックボックスに「レ」マークを入れ、併せ"]
[null,null,"てその内容を記入して下さい。"]
[null,"③","　１欄の「ロ」は、該当する用途地域名を全て記入してください。"]
[null,"④","　２欄の「イ」は、該当する全てのチェックボックスに「レ」マークを入れてください。なお、"]
[null,null,"その他の構造からなる場合には、「その他」のチェックボックスに「レ」マークを入れ、併せ"]
[null,null,"て具体的な構造を記入してください。"]
[null,"⑤","　３欄の「イ」は、建築基準法別表第一(い)欄に掲げる用途に供する部分について、最上階か"]
[null,null,"ら順に記入し、当該用途に供する部分の床面積を記入してください。ただし、特定行政庁が報"]
[null,null,"告の必要がある用途を定めている場合には、その用途について記入して下さい。該当する用途"]
[null,null,"が複数あるときは、それらを全て記入してください。"]
[null,"⑥","　３欄の「ロ」は、「イ」の用途ごとに床面積の合計を記入してください。"]
[null,"⑦","　４欄は、建築基準法施行令第108条の３第２項に規定する耐火性能検証法により耐火に関す"]
[null,null,"る性能が検証されたときは「耐火性能検証法」のチェックボックスに、同令第108条の３第５"]
[null,null,"項に規定する防火区画検証法により遮炎に関する性能が検証されたときは「防火区画検証法」"]
[null,null,"のチェックボックスに、同令第128条の６第３項に規定する区画避難安全検証法により区画避"]
[null,null,"難安全性能が検証されたときは「区画避難安全検証法」のチェックボックスに、同令第129条"]
[null,null,"第３項に規定する階避難安全検証法により階避難安全性能が検証されたときは「階避難安全検"]
[null,null,"証法」のチェックボックスに、同令第129条の２第４項に規定する全館避難安全検証法により"]
[null,null,"全館避難安全性能が検証されたときは「全館避難安全検証法」のチェックボックスに、それぞ"]
[null,null,"れ「レ」マークを入れ､「区画避難安全検証法」の場合は区画避難安全性能を検証した階を、"]
[null,null,"「階避難安全検証法」の場合は階避難安全性能を検証した階を、併せて記入してください。建"]
[null,null,"築基準法第38条（同法第66条、第67条の２及び第88条第１項において準用する場合を含む。）"]
[null,null,"の規定による特殊構造方法等認定、同法第68条の25第１項の規定による構造方法等の認定又は"]
[null,null,"建築基準法の一部を改正する法律（平成10年法律第100号）による改正前の建築基準法第38条"]
[null,null,"の規定による認定を受けている建築物のうち、当該適用について特に報告が必要なものについ"]
[null,null,"ては「その他」のチェックボックスに「レ」マークを入れ、その概要を記入してください。"]
[null,"⑧","　５欄は、前回調査時以降の建築（新築を除く。）、模様替え、修繕又は用途の変更（以下「"]
[null,null,"増築、改築、用途変更等」という。）について、古いものから順に記入し、確認（建築基準法"]
[null,null,"第６条第１項に規定する確認。以下同じ。）を受けている場合は建築確認済証交付年月日を、"]
[null,null,"受けていない場合は増築、改築、用途変更等が完了した年月日を、併せて記入し、それぞれ増"]
[null,null,"築、改築、用途変更等の概要を記入してください。"]
[null,"⑨","　６欄の「イ」は、最近の確認について、当該確認に要した図書の全部又は一部があるときは"]
[null,null,"「有」のチェックボックスに「レ」マークを入れ、そのうち各階平面図のみがあるときは併せ"]
[null,null,"て「各階平面図あり」のチェックボックスに「レ」マークを入れてください。"]
[null,"⑩","　６欄の「ロ」は、最近の確認にかかる確認済証について、該当するチェックボックスに「レ」"]
[null,null,"マ－クを入れてください。「有」の場合は、確認済証の交付年月日を記入し、交付者に関する"]
[null,null,"チェックボックスに「レ」マークを入れ、「指定確認検査機関」の場合は、併せてその名称を"]
[null,null,"記入してください。"]
[null,"⑪","　６欄の「ハ」は、直近の完了検査について、当該完了検査に要した図書の全部又は一部があ"]
[null,null,"るときは「有」のチェックボックスに「レ」マークを入れてください。"]
[null,"⑫","　６欄の「ニ」は、（注意）に準じて記入してください。"]
[null,"⑬","　６欄の「ホ」は、建築基準法第８条第２項に規定する維持保全に関する準則又は計画につい"]
[null,null,"て記入してください。"]
[null,"⑭","　６欄の「へ」は、前回の定期調査の結果を記録した書類の保存の有無について記入してくだ"]
[null,null,"さい。"]
[null,"⑮","　建築基準法第86条の８の規定の適用を受けている場合において、７欄にその旨を記載してく"]
[null,null,"ださい。"]
[null,"⑯","　ここに書き表せない事項で特に報告すべき事項は、７欄又は別紙に記載して添えてください。"]
["4.第三面関係"]
[null,"①","　この書類は、建築物ごとに、当該建築物の敷地、構造及び建築設備の状況（別途建築設備の"]
[null,null,"検査を行っている場合は建築設備の設置の状況に係るものに限る。）に関する調査の結果につ"]
[null,null,"いて作成してください。"]
[null,"②","　１欄の「イ」は、調査が終了した年月日を記入してください。"]
[null,null,"　(建築物定期調査結果書の日付と合わせてください。)"]
[null,"③","　１欄の「ロ」から「ホ」までは、報告の対象となっていない場合には「未実施」のチェック"]
[null,null,"ボックスに「レ」マークを入れてください。"]
[null,"④","　１欄の「ハ」から「ホ」までは、直前の報告について、それぞれ記入してください。"]
[null,"⑤","　２欄の「イ」は、調査結果において、是正が必要と認められるときは「要是正の指摘あり」"]
[null,null,"のチェックボックスに「レ」マークを入れ、建築基準法第３条第２項（同法第86条の９第１項"]
[null,null,"において準用する場合を含む。）の規定の適用を受けているものであることが確認されたとき"]
[null,null,"は併せて「既存不適格」のチェックボックスに「レ」マークを入れてください。"]
[null,"⑥","　２欄の「イ」の「要是正の指摘あり」のチェックボックスに「レ」マークを入れたとき（「"]
[null,null,"既存不適格」のチェックボックスに「レ」マークを入れたときを除く。）は、「ロ」に指摘の"]
[null,null,"概要を記入して下さい。"]
[null,"⑦","　２欄の「イ」の「要是正の指摘あり」のチェックボックスに「レ」マークを入れた当該指摘"]
[null,null,"をうけた項目について改善予定があるときは「ハ」の「有」のチェックボックスに「レ」マー"]
[null,null,"クを入れ、併せて改善予定年月を記入してください。改善予定がないときは「ハ」の「無」の"]
[null,null,"チェックボックスに「レ」マークを入れてください。"]
[null,"⑧","　３欄は、建築基準法第28条の２の規定の適用を受ける石綿を添加した建築材料について記入"]
[null,null,"してください。「イ」の「有（飛散防止措置無）」又は「有（飛散防止措置有）」のチェック"]
[null,null,"ボックスに「レ」マークを入れたときは、当該建築材料が確認された室を記入してください。"]
[null,null,"当該建築材料について飛散防止措置を行う予定があるときは、「ロ」の「有」のチェックボッ"]
[null,null,"クスに「レ」マークを入れ、併せて措置予定年月を記入してください。措置を行う予定がない"]
[null,null,"ときは、「ロ」の「無」のチェックボックスに「レ」マークを入れてください。"]
[null,"⑨","　４欄は、建築物の耐震改修の促進に関する法律（平成７年法律第123号）第２条第１項又は第"]
[null,null,"２項に規定する耐震診断又は耐震改修の実施の有無について記入してください。耐震診断又は"]
[null,null,"耐震改修の実施の予定があるときは、実施予定年月を記入し、具体的な耐震改修の内容を定め"]
[null,null,"ている場合は別紙に記入し添えてください。"]
[null,"⑩","　前回調査時以降に把握した屋根ふき材、内装材、外装材等及び広告塔、装飾塔その他建築物"]
[null,null,"の屋外に取り付けられたものの脱落、バルコニー、屋上等の手すりその他建築物の部分の脱落、"]
[null,null,"防火設備等の異常動作等（以下、「不具合等」という。）について第四面の「不具合等の概要」"]
[null,null,"欄に記入したときは、５欄の「イ」の「有」のチェックボックスに「レ」マークを入れ、当該"]
[null,null,"不具合等について記録が有るときは「ロ」の「有」のチェックボックスに「レ」マークを入れ、"]
[null,null,"記録が無いときは「ロ」の「無」のチェックボックスに「レ」マークを入れてください。また、"]
[null,null,"第四面に記入された不具合等のうち当該不具合等を受け既に改善を実施しているものがあり、"]
[null,null,"かつ、改善を行う予定があるものがない場合には「ハ」の「実施済」のチェックボックスに"]
[null,null,"「レ」マークを入れ、第四面に記入された不具合等のうち改善を行う予定があるものがある場"]
[null,null,"合には「改善予定」のチェックボックスに「レ」マークを入れ、第四面の「改善（予定）年月」"]
[null,null,"欄に記入された改善予定年月のうち最も早いものを併せて記入し、これら以外の場合には「予"]
[null,null,"定なし」のチェックボックスに「レ」マークを入れてください。"]
[null,"⑪","　各欄に掲げられている項目以外で特に報告すべき事項は、６欄又は別紙に記入して添えてく"]
[null,null,"ださい。"]
["5.第四面関係"]
[null,"①","　第四面は、前回調査時以降に把握した建築物等に係る不具合等のうち第三面の２欄において"]
[null,null,"指摘されるもの以外のものについて、把握できる範囲において記入してください。前回調査時"]
[null,null,"以降の不具合等を把握していない場合は、第四面を省略することができます。"]
[null,"②","　「不具合等を把握した年月」欄は、当該不具合等を把握した年月を記入してください。"]
[null,"③","　「不具合等の概要」欄は、当該不具合等の概要を記入してください。"]
[null,"④","　「考えられる原因」欄は、当該不具合等が生じた原因として考えられるものを記入してくだ"]
[null,null,"さい。"]
[null,"⑤","　「改善(予定)年月」欄は、既に改善を実施している場合には実施年月を、改善を行う予定が"]
[null,null,"ある場合には改善予定年月を記入し、改善を行う予定がない場合には「－」マークを記入して"]
[null,null,"ください。"]
[null,"⑥","　「改善措置の概要等」欄は、既に改善を実施している場合又は改善を行う予定がある場合に、"]
[null,null,"具体的措置の概要を記入してください。改善を行う予定がない場合には、その理由を記入して"]
[null,null,"ください。"]

{"sheet":"①定期調査報告書","index":2,"n_rows":218,"n_cols":41,"rows_kept":218,"cut":false,"hidden":false,"merged":[[82,11,82,19],[81,21,81,25],[100,18,100,19],[100,30,100,31],[215,0,215,3],[193,1,193,2],[200,1,200,2],[196,1,196,2],[49,8,49,33],[105,8,105,9],[104,14,104,15],[175,0,176,33],[184,1,184,2],[50,9,50,11],[52,8,52,33],[50,13,50,15],[53,9,53,33],[54,9,54,33],[59,14,59,15],[59,17,59,18],[213,1,213,2],[191,0,191,3],[195,0,195,3],[189,1,189,2],[183,0,183,3],[183,4,186,13],[180,25,182,33],[185,22,185,23],[180,14,182,21],[192,1,192,2],[180,4,182,13],[188,22,188,23],[195,4,198,13],[195,14,198,21],[187,25,190,33],[191,25,194,33],[192,22,192,23],[193,22,193,23],[197,1,197,2],[183,25,186,33],[188,1,188,2],[11,18,11,32],[184,22,184,23],[183,14,186,21],[38,13,38,15],[38,17,38,19],[71,9,71,33],[84,11,84,19],[85,11,85,19],[35,28,35,31],[15,9,15,33],[115,14,115,17],[130,21,130,22],[130,18,130,19],[129,18,129,19],[127,21,127,22],[115,18,115,19],[126,21,126,22],[120,0,122,33],[129,13,129,16],[128,13,128,16],[25,9,25,11],[37,8,37,33],[25,13,25,15],[25,17,25,19],[12,21,12,32],[13,21,13,32],[16,9,16,33],[35,8,35,11],[28,9,28,12],[18,8,18,33],[34,28,34,31],[17,9,17,10],[17,12,17,14],[27,28,27,31],[19,9,19,11],[23,9,23,10],[24,8,24,33],[19,13,19,15],[19,17,19,19],[21,9,21,33],[22,9,22,33],[30,28,30,31],[31,9,31,33],[23,12,23,14],[28,28,28,31],[28,19,28,23],[29,28,29,31],[33,8,33,33],[38,9,38,11],[40,19,40,23],[32,9,32,33],[43,9,43,33],[47,28,47,31],[45,8,45,33],[48,9,48,10],[40,9,40,12],[47,19,47,22],[36,12,36,14],[35,19,35,22],[36,9,36,10],[46,28,46,31],[47,8,47,11],[40,28,40,31],[39,28,39,31],[42,28,42,31],[41,28,41,31],[48,12,48,15],[44,9,44,33],[55,8,55,33],[50,17,50,19],[60,9,60,33],[66,0,66,33],[62,11,64,28],[78,23,78,26],[78,10,78,14],[75,13,75,14],[62,2,62,3],[62,5,62,6],[63,2,63,7],[75,20,75,21],[70,14,70,21],[62,8,62,9],[74,27,74,32],[77,10,77,14],[76,10,76,14],[58,9,58,33],[82,21,82,25],[81,11,81,19],[81,7,81,8],[62,29,64,33],[173,22,173,23],[173,19,173,20],[168,23,168,24],[169,23,169,24],[169,20,169,21],[168,20,168,21],[168,17,168,19],[169,17,169,19],[85,21,85,25],[96,11,96,19],[87,11,87,19],[86,21,86,25],[126,24,126,25],[115,21,115,22],[112,25,112,32],[115,28,115,32],[111,21,111,22],[111,28,111,32],[166,14,166,15],[166,17,166,18],[165,22,165,23],[164,21,164,29],[141,14,141,15],[123,0,123,33],[146,17,146,18],[141,17,141,18],[149,9,150,33],[127,13,127,16],[126,13,126,16],[136,17,136,18],[130,13,130,16],[136,14,136,15],[134,9,135,33],[128,18,128,19],[93,7,93,8],[91,11,91,19],[92,11,92,19],[93,11,93,19],[87,21,87,25],[88,21,88,25],[127,24,127,25],[98,11,98,19],[90,7,90,8],[90,11,90,19],[97,11,97,19],[102,14,102,32],[94,21,94,25],[94,11,94,19],[92,21,92,25],[96,21,96,25],[98,21,98,25],[93,21,93,25],[89,21,89,25],[105,14,105,15],[106,8,106,9],[107,8,107,9],[104,8,104,9],[83,21,83,25],[83,11,83,19],[87,7,87,8],[127,18,127,19],[130,24,130,25],[128,24,128,25],[129,24,129,25],[128,21,128,22],[84,7,84,8],[95,11,95,19],[84,21,84,25],[86,11,86,19],[107,11,107,12],[107,14,107,15],[104,20,104,32],[105,20,105,32],[106,20,106,32],[107,20,107,32],[106,14,106,15],[104,2,104,7],[105,2,105,7],[106,2,106,7],[107,2,107,7],[88,11,88,19],[80,14,80,16],[146,14,146,15],[163,21,163,29],[151,14,151,15],[151,17,151,18],[144,9,145,33],[154,9,155,33],[139,9,140,33],[89,11,89,19],[161,14,161,15],[159,9,160,33],[91,21,91,25],[116,25,116,32],[90,21,90,25],[95,21,95,25],[115,24,115,25],[126,18,126,19],[111,24,111,25],[111,18,111,19],[111,14,111,17],[104,11,104,12],[105,11,105,12],[106,11,106,12],[97,21,97,25],[201,1,201,2],[199,0,199,3],[203,0,203,3],[207,0,207,3],[211,0,211,3],[204,1,204,2],[216,22,216,23],[217,22,217,23],[203,4,206,13],[207,4,210,13],[211,4,214,13],[207,14,210,21],[203,14,206,21],[215,4,218,13],[215,14,218,21],[208,1,208,2],[209,1,209,2],[199,14,202,21],[199,4,202,13],[216,1,216,2],[217,1,217,2],[211,14,214,21],[212,1,212,2],[205,1,205,2],[207,25,210,33],[211,25,214,33],[212,22,212,23],[208,22,208,23],[209,22,209,23],[215,25,218,33],[207,22,207,24],[211,22,211,24],[215,22,215,24],[213,22,213,23],[3,10,3,25],[6,0,7,33],[9,25,9,26],[9,28,9,29],[9,31,9,32],[187,14,190,21],[191,14,194,21],[177,0,177,33],[4,0,4,33],[9,6,9,13],[189,22,189,23],[191,4,194,13],[187,4,190,13],[156,14,156,15],[156,17,156,18],[161,17,161,18],[180,22,182,24],[185,1,185,2],[187,0,187,3],[180,0,182,3],[183,22,183,24],[187,22,187,24],[80,22,80,25],[129,21,129,22],[203,25,206,33],[199,25,202,33],[205,22,205,23],[204,22,204,23],[191,22,191,24],[195,22,195,24],[199,22,199,24],[203,22,203,24],[196,22,196,23],[197,22,197,23],[200,22,200,23],[201,22,201,23],[195,25,198,33]]}
[]
["第三十六号の二様式（第五条関係）（Ａ４）"]
[]
[null,null,null,null,null,null,null,null,null,null,"定　期　調　査　報　告　書"]
["（第一面）"]
[]
["　建築基準法第１２条第１項の規定による定期調査の結果を報告します。この報告書に記載の事項は、\n事実に相違ありません。"]
[]
[]
[null,"特定行政庁",null,null,null,null,null,null,null,null,null,null,null,null,"様",null,null,null,null,null,null,null,null,null,"令和",null,null,"年",null,null,"月",null,null,"日"]
[]
[]
[null,null,null,null,null,null,null,null,null,null,null,null,null,null,null,null,null,null,null,null,"報告者氏名"]
[null,null,null,null,null,null,null,null,null,null,null,null,null,null,null,null,null,null,null,null,"調査者氏名"]
["【1．所有者】"]
[null,"【イ．氏名のフリガナ】"]
[null,"【ロ．氏名】"]
[null,"【ハ．郵便番号】",null,null,null,null,null,null,"〒",null,null,"－"]
[null,"【ニ．住所】",null,null,null,null,"　"]
[null,"【ホ．電話番号】",null,null,null,null,null,null,"（",null,null,null,"）",null,null,null,"－"]
["【2． 管理者】"]
[null,"【イ．氏名のフリガナ】"]
[null,"【ロ．氏名】"]
[null,"【ハ．郵便番号】",null,null,null,null,null,null,"〒",null,null,"－"]
[null,"【ニ．住所】"]
[null,"【ホ．電話番号】",null,null,null,null,null,null,"（",null,null,null,"）",null,null,null,"－"]
["【3．調査者】"]
["(","代表となる調査者）",null,null,null,null,null,null,null,null,null,null,null,null,null,null,"（石川県建築住宅センター",null,null,null,null,null,null,null,null,null,"登録","第",null,null,null,null,"号）"]
[null,"【イ．資格等】",null,null,null,null,null,null,"（",null,null,null,null,"）建築士",null,null,null,null,"（",null,null,null,null,null,"）",null,"登録","第",null,null,null,null,"号"]
[null,null,null,null,null,null,null,null,"特定建築物調査員",null,null,null,null,null,null,null,null,null,null,null,null,null,null,null,null,null,null,"第",null,null,null,null,"号"]
[]
[null,"【ロ．氏名のフリガナ】"]
[null,"【ハ．氏名】",null,null,null,null,null,null,null,"　"]
[null,"【ニ．勤務先】",null,null,null,null,null,null,"　"]
[null,null,null,null,null,null,null,null,null,null,null,null,null,null,null,null,"（石川県建築住宅センター",null,null,null,null,null,null,null,null,null,"登録","第",null,null,null,null,"号）"]
[null,null,null,null,null,null,null,"（",null,null,null,null,"）建築士事務所",null,null,null,null,null,"（",null,null,null,null,null,null,null,")　知事登録","第",null,null,null,null,"号"]
[null,"【ホ．郵便番号】",null,null,null,null,null,null,"〒",null,null,"－"]
[null,"【へ．所在地】"]
[null,"【ト．電話番号】",null,null,null,null,null,null,"（",null,null,null,"）",null,null,null,"－"]
["(","その他の調査者）",null,null,null,null,null,null,null,null,null,null,null,null,null,null,"（石川県建築住宅センター",null,null,null,null,null,null,null,null,null,"登録","第",null,null,null,null,"号）"]
[null,"【イ．資格等】",null,null,null,null,null,null,"（",null,null,null,null,"）建築士",null,null,null,null,"（",null,null,null,null,null,"）",null,"登録","第",null,null,null,null,"号"]
[null,null,null,null,null,null,null,null,"特定建築物調査員",null,null,null,null,null,null,null,null,null,null,null,null,null,null,null,null,null,null,"第",null,null,null,null,"号"]
[]
[null,"【ロ．氏名のフリガナ】"]
[null,"【ハ．氏名】",null,null,null,null,null,null,null,"　"]
[null,"【ニ．勤務先】",null,null,null,null,null,null,"　"]
[null,null,null,null,null,null,null,null,null,null,null,null,null,null,null,null,"（石川県建築住宅センター",null,null,null,null,null,null,null,null,null,"登録","第",null,null,null,null,"号）"]
[null,null,null,null,null,null,null,"（",null,null,null,null,"）建築士事務所",null,null,null,null,null,"（",null,null,null,null,null,null,null,")　知事登録","第",null,null,null,null,"号"]
[null,"【ホ．郵便番号】",null,null,null,null,null,null,"〒",null,null,"－"]
[null,"【へ．所在地】"]
[null,"【ト．電話番号】",null,null,null,null,null,null,"（",null,null,null,"）",null,null,null,"－"]
["【4．報告対象建築物】"]
[null,"【イ．所在地】"]
[null,"【ロ．名称のフリガナ】"]
[null,"【ハ．名称】"]
[null,"【ニ．用途】"]
["【5．調査による指摘の概要】"]
[null,"【イ．指摘の内容】",null,null,null,null,null,null,null,null,null,null,null,null,null,null,"（"]
[null,"【ロ．指摘の概要】"]
[null,"【ハ．改善予定の有無】",null,null,null,null,null,null,null,null,null,null,null,"（令和",null,null,"年",null,null,"月に改善予定）"]
[null,"【ニ．その他特記事項】"]
["※受付欄",null,null,null,null,null,null,null,null,null,null,"※特記欄",null,null,null,null,null,null,null,null,null,null,null,null,null,null,null,null,null,"※整理番号欄"]
["令和",null,null,null,"年",null,null,"月",null,null,"日","　"]
[null,"第",null,null,null,null,null,null,"号"]
["係員氏名"]
[]
["(第二面）"]
["建築物及びその敷地に関する事項"]
["【1．敷地の位置】"]
[null,"【イ．防火地域等】"]
[null,null,null,null,null,null,null,null,null,null,null,null,"（",null,null,null,null,null,null,null,null,null,"）"]
[null,"【ロ．用途地域】"]
["【2．建築物及びその敷地の概要】"]
[null,"【イ．構造】"]
[null,null,null,null,null,null,null,null,null,null,null,null,null,null,null,null,null,null,null,null,null,null,null,null,null,null,"（",null,null,null,null,null,null,")"]
[null,"【ロ．階数】",null,null,null,null,null,null,null,null,null,"地上",null,null,null,"階",null,null,"地下",null,null,null,"階"]
[null,"【ハ．敷地面積】",null,null,null,null,null,null,null,null,null,null,null,null,null,"㎡"]
[null,"【ニ．建築面積】",null,null,null,null,null,null,null,null,null,null,null,null,null,"㎡"]
[null,"【ホ．延べ面積】",null,null,null,null,null,null,null,null,null,null,null,null,null,"㎡",null,null,"（うち対象床面積",null,null,null,null,null,null,null,null,"㎡","）"]
["【3．階別用途別床面積】"]
[null,"【イ．階別用途別】",null,null,null,null,null,null,null,null,"（",null,null,null,"用途",null,null,null,null,null,"）（",null,"床面積",null,null,null,null,"）"]
[null,null,null,null,null,null,"（",null,null,"階","）（","　",null,null,null,null,null,null,null,null,"）（",null,null,null,null,null,"㎡","）"]
[null,null,null,null,null,null,null,null,null,null,"（","　",null,null,null,null,null,null,null,null,"）（",null,null,null,null,null,"㎡","）"]
[null,null,null,null,null,null,null,null,null,null,"（","　",null,null,null,null,null,null,null,null,"）（",null,null,null,null,null,"㎡","）"]
[null,null,null,null,null,null,"（",null,null,"階","）（","　",null,null,null,null,null,null,null,null,"）（",null,null,null,null,null,"㎡","）"]
[null,null,null,null,null,null,null,null,null,null,"（","　",null,null,null,null,null,null,null,null,"）（",null,null,null,null,null,"㎡","）"]
[null,null,null,null,null,null,null,null,null,null,"（","　　",null,null,null,null,null,null,null,null,"）（",null,null,null,null,null,"㎡","）"]
[null,null,null,null,null,null,"（",null,null,"階","）（","　",null,null,null,null,null,null,null,null,"）（",null,null,null,null,null,"㎡","）"]
[null,null,null,null,null,null,null,null,null,null,"（","　",null,null,null,null,null,null,null,null,"）（",null,null,null,null,null,"㎡","）"]
[null,null,null,null,null,null,null,null,null,null,"（","　",null,null,null,null,null,null,null,null,"）（",null,null,null,null,null,"㎡","）"]
[null,null,null,null,null,null,"（",null,null,"階","）（","　",null,null,null,null,null,null,null,null,"）（",null,null,null,null,null,"㎡","）"]
[null,null,null,null,null,null,null,null,null,null,"（","　",null,null,null,null,null,null,null,null,"）（",null,null,null,null,null,"㎡","）"]
[null,null,null,null,null,null,null,null,null,null,"（","　",null,null,null,null,null,null,null,null,"）（",null,null,null,null,null,"㎡","）"]
[null,null,null,null,null,null,"（",null,null,"階","）（","　",null,null,null,null,null,null,null,null,"）（",null,null,null,null,null,"㎡","）",null,null,null,null,null,null,null,null,null,null,null,null," "]
[null,null,null,null,null,null,null,null,null,null,"（","　",null,null,null,null,null,null,null,null,"）（",null,null,null,null,null,"㎡","）"]
[null,null,null,null,null,null,null,null,null,null,"（","　",null,null,null,null,null,null,null,null,"）（",null,null,null,null,null,"㎡","）"]
[null,"【ロ．用途別】",null,null,null,null,null,null,null,null,"（","　",null,null,null,null,null,null,null,null,"）（",null,null,null,null,null,"㎡","）"]
[null,null,null,null,null,null,null,null,null,null,"（","　",null,null,null,null,null,null,null,null,"）（",null,null,null,null,null,"㎡","）"]
[null,null,null,null,null,null,null,null,null,null,"（","　",null,null,null,null,null,null,null,null,"）（",null,null,null,null,null,"㎡","）"]
["【4．性能検証法等の適用】"]
[null,null,null,null,null,null,null,null,null,null,null,null,null,null,null,null,null,"（",null,null,"階）",null,null,null,null,null,null,null,null,"（",null,null,"階）"]
[]
[null,null,null,null,null,null,null,null,null,null,null,null,null,"（",null,null,null,null,null,null,null,null,null,null,null,null,null,null,null,null,null,null,null,"）"]
["【5．増築、改築、用途変更等の経過】"]
[null,null,"昭和･平成・令和",null,null,null,null,null,null,null,"年",null,null,"月",null,null,"日",null,"概要 （",null,null,null,null,null,null,null,null,null,null,null,null,null,null,"）"]
[null,null,"昭和･平成・令和",null,null,null,null,null,null,null,"年",null,null,"月",null,null,"日",null,"概要 （",null,null,null,null,null,null,null,null,null,null,null,null,null,null,"）"]
[null,null,"昭和･平成・令和",null,null,null,null,null,null,null,"年",null,null,"月",null,null,"日",null,"概要 （",null,null,null,null,null,null,null,null,null,null,null,null,null,null,"）"]
[null,null,"昭和･平成・令和",null,null,null,null,null,null,null,"年",null,null,"月",null,null,"日",null,"概要 （",null,null,null,null,null,null,null,null,null,null,null,null,null,null,"）"]
["【6．関連図書の整備状況】"]
[null,"【イ．確認に要した図書】",null,null,null,null,null,null,null,null,null,null,"(",null,null,null,null,null,null,")"]
[null,"【ロ．確認済証】"]
[null,null,null,null,null,null,null,null,null,"交付番号",null,null,null,null,"昭和･平成・令和",null,null,null,null,null,"年",null,null,"月",null,null,"日","第",null,null,null,null,null,"号"]
[null,null,null,null,null,null,null,null,null,"交付者",null,null,null,null,null,null,null,null,null,null,null,null,null,null,"（",null,null,null,null,null,null,null,null,"）"]
[null,"【ハ．完了検査に要した図書】"]
[null,"【ニ．検査済証】"]
[null,null,null,null,null,null,null,null,null,"交付番号",null,null,null,null,"昭和･平成・令和",null,null,null,null,null,"年",null,null,"月",null,null,"日","第",null,null,null,null,null,"号"]
[null,null,null,null,null,null,null,null,null,"交付者",null,null,null,null,null,null,null,null,null,null,null,null,null,null,"（",null,null,null,null,null,null,null,null,"）"]
[null,"【ホ．維持保全に関する準則又は計画】"]
[null,"【ヘ．前回の調査に関する書類の写し】"]
["【7．備　　　考】"]
[]
[]
[]
["（第三面）"]
["調査等の概要"]
["【1．調査及び検査の状況】"]
[null,"【イ．今回の調査】",null,null,null,null,null,null,null,null,null,null,null,"令和",null,null,null,null,null,null,"年",null,null,"月",null,null,"日実施"]
[null,"【ロ．前回の調査】",null,null,null,null,null,null,null,null,null,null,null,"（平成・令和",null,null,null,null,null,null,"年",null,null,"月",null,null,"日報告）"]
[null,"【ハ．建築設備の検査】",null,null,null,null,null,null,null,null,null,null,null,"（令和",null,null,null,null,null,null,"年",null,null,"月",null,null,"日報告）"]
[null,"【ニ．昇降機等の検査】",null,null,null,null,null,null,null,null,null,null,null,"（令和",null,null,null,null,null,null,"年",null,null,"月",null,null,"日報告）"]
[null,"【ホ．防火設備の検査】",null,null,null,null,null,null,null,null,null,null,null,"（令和",null,null,null,null,null,null,"年",null,null,"月",null,null,"日報告）"]
["【2．調査の状況】"]
["(","敷地及び地盤）"]
[null,"【イ．指摘の内容】",null,null,null,null,null,null,null,null,null,null,null,null,null,null,"（",null,null,null,null,"）"]
[null,"【ロ．指摘の概要】"]
[]
[null,"【ハ．改善予定の有無】",null,null,null,null,null,null,null,null,null,null,null,"（令和",null,null,"年",null,null,"月","に改善予定）"]
["(","建築物の外部）"]
[null,"【イ．指摘の内容】",null,null,null,null,null,null,null,null,null,null,null,null,null,null,"（",null,null,null,null,"）"]
[null,"【ロ．指摘の概要】"]
[]
[null,"【ハ．改善予定の有無】",null,null,null,null,null,null,null,null,null,null,null,"（令和",null,null,"年",null,null,"月","に改善予定）"]
["(","屋上及び屋根）"]
[null,"【イ．指摘の内容】",null,null,null,null,null,null,null,null,null,null,null,null,null,null,"（",null,null,null,null,"）"]
[null,"【ロ．指摘の概要】"]
[]
[null,"【ハ．改善予定の有無】",null,null,null,null,null,null,null,null,null,null,null,"（令和",null,null,"年",null,null,"月","に改善予定）"]
["(","建築物の内部）"]
[null,"【イ．指摘の内容】",null,null,null,null,null,null,null,null,null,null,null,null,null,null,"（",null,null,null,null,"）"]
[null,"【ロ．指摘の概要】"]
[]
[null,"【ハ．改善予定の有無】",null,null,null,null,null,null,null,null,null,null,null,"（令和",null,null,"年",null,null,"月","に改善予定）"]
["(","避難施設等）"]
[null,"【イ．指摘の内容】",null,null,null,null,null,null,null,null,null,null,null,null,null,null,"（",null,null,null,null,"）"]
[null,"【ロ．指摘の概要】"]
[]
[null,"【ハ．改善予定の有無】",null,null,null,null,null,null,null,null,null,null,null,"（令和",null,null,"年",null,null,"月","に改善予定）"]
["(","その他)"]
[null,"【イ．指摘の内容】",null,null,null,null,null,null,null,null,null,null,null,null,null,null,"（",null,null,null,null,"）"]
[null,"【ロ．指摘の概要】"]
[]
[null,"【ハ．改善予定の有無】",null,null,null,null,null,null,null,null,null,null,null,"（令和",null,null,"年",null,null,"月","に改善予定）"]
["【3．石綿を添加した建築材料の調査状況】",null,null,null,null,null,null,null,null,null,null,null,null,null,null,null,null,null,null,null,null,"（該当する室）"]
[null,"【イ．該当建築材料の有無】",null,null,null,null,null,null,null,null,null,null,null,null,"（飛散防止措置無）",null,null,null,null,null,"（",null,null,null,null,null,null,null,null,null,"）"]
[null,null,null,null,null,null,null,null,null,null,null,null,null,null,"（飛散防止措置有）",null,null,null,null,null,"（",null,null,null,null,null,null,null,null,null,"）"]
[]
[null,"【ロ．措置予定の有無】",null,null,null,null,null,null,null,null,null,null,null,"（令和",null,null,"年",null,null,"月","に改善予定）"]
["【4．耐震診断及び耐震改修の調査状況】"]
[null,"【イ．耐震診断の実施の有無】",null,null,null,null,null,null,null,null,null,null,null,null,null,null,null,"（平成・令和",null,null,null,null,"年",null,null,"月","に実施予定）"]
[null,"【ロ．耐震改修の実施の有無】",null,null,null,null,null,null,null,null,null,null,null,null,null,null,null,"（平成・令和",null,null,null,null,"年",null,null,"月","に実施予定）"]
["【5．建築物等に係る不具合等の状況】"]
[null,"【イ．不具合等】"]
[null,"【ロ．不具合等の記録】"]
[null,"【ハ．改善の状況】",null,null,null,null,null,null,null,null,null,null,null,null,null,null,null,null,"（令和",null,null,"年",null,null,"月","に実施予定）"]
["【6．備　　　考】"]
[]
[]
["（第四面）"]
["建築物等に係る不具合等の状況"]
[]
["不具合等を\n把握した\n年月",null,null,null,"不具合等の概要",null,null,null,null,null,null,null,null,null,"考えられる原因",null,null,null,null,null,null,null,"改善（予定）\n年月",null,null,"改善措置の概要等"]
[]
[]
["　",null,null,null,null,null,null,null,null,null,null,null,null,null,null,null,null,null,null,null,null,null,"　　"]
[null,null,null,"年",null,null,null,null,null,null,null,null,null,null,null,null,null,null,null,null,null,null,null,null,"年"]
[null,null,null,"月",null,null,null,null,null,null,null,null,null,null,null,null,null,null,null,null,null,null,null,null,"月"]
[]
["　",null,null,null,null,null,null,null,null,null,null,null,null,null,null,null,null,null,null,null,null,null,"　　"]
[null,null,null,"年",null,null,null,null,null,null,null,null,null,null,null,null,null,null,null,null,null,null,null,null,"年"]
[null,null,null,"月",null,null,null,null,null,null,null,null,null,null,null,null,null,null,null,null,null,null,null,null,"月"]
[]
["　",null,null,null,null,null,null,null,null,null,null,null,null,null,null,null,null,null,null,null,null,null,"　　"]
[null,null,null,"年",null,null,null,null,null,null,null,null,null,null,null,null,null,null,null,null,null,null,null,null,"年"]
[null,null,null,"月",null,null,null,null,null,null,null,null,null,null,null,null,null,null,null,null,null,null,null,null,"月"]
[]
["　",null,null,null,null,null,null,null,null,null,null,null,null,null,null,null,null,null,null,null,null,null,"　　"]
[null,null,null,"年",null,null,null,null,null,null,null,null,null,null,null,null,null,null,null,null,null,null,null,null,"年"]
[null,null,null,"月",null,null,null,null,null,null,null,null,null,null,null,null,null,null,null,null,null,null,null,null,"月"]
[]
["　",null,null,null,null,null,null,null,null,null,null,null,null,null,null,null,null,null,null,null,null,null,"　　"]
[null,null,null,"年",null,null,null,null,null,null,null,null,null,null,null,null,null,null,null,null,null,null,null,null,"年"]
[null,null,null,"月",null,null,null,null,null,null,null,null,null,null,null,null,null,null,null,null,null,null,null,null,"月"]
[]
["　",null,null,null,null,null,null,null,null,null,null,null,null,null,null,null,null,null,null,null,null,null,"　　"]
[null,null,null,"年",null,null,null,null,null,null,null,null,null,null,null,null,null,null,null,null,null,null,null,null,"年"]
[null,null,null,"月",null,null,null,null,null,null,null,null,null,null,null,null,null,null,null,null,null,null,null,null,"月"]
[]
["　",null,null,null,null,null,null,null,null,null,null,null,null,null,null,null,null,null,null,null,null,null,"　　"]
[null,null,null,"年",null,null,null,null,null,null,null,null,null,null,null,null,null,null,null,null,null,null,null,null,"年"]
[null,null,null,"月",null,null,null,null,null,null,null,null,null,null,null,null,null,null,null,null,null,null,null,null,"月"]
[]
["　",null,null,null,null,null,null,null,null,null,null,null,null,null,null,null,null,null,null,null,null,null,"　　"]
[null,null,null,"年",null,null,null,null,null,null,null,null,null,null,null,null,null,null,null,null,null,null,null,null,"年"]
[null,null,null,"月",null,null,null,null,null,null,null,null,null,null,null,null,null,null,null,null,null,null,null,null,"月"]
[]
["　",null,null,null,null,null,null,null,null,null,null,null,null,null,null,null,null,null,null,null,null,null,"　　"]
[null,null,null,"年",null,null,null,null,null,null,null,null,null,null,null,null,null,null,null,null,null,null,null,null,"年"]
[null,null,null,"月",null,null,null,null,null,null,null,null,null,null,null,null,null,null,null,null,null,null,null,null,"月"]

{"sheet":"②資格者追加別紙","index":3,"n_rows":47,"n_cols":34,"rows_kept":47,"cut":false,"hidden":false,"merged":[[26,9,26,33],[38,9,38,33],[30,9,30,33],[35,29,35,32],[36,29,36,32],[28,10,28,13],[35,20,35,24],[28,29,28,32],[31,10,31,12],[31,14,31,16],[29,13,29,15],[28,20,28,24],[31,18,31,20],[23,9,23,33],[20,29,20,32],[20,10,20,13],[22,29,22,32],[20,20,20,24],[3,29,3,32],[14,10,14,11],[14,13,14,15],[16,10,16,12],[16,14,16,16],[5,10,5,13],[6,29,6,32],[5,29,5,32],[13,20,13,24],[7,29,7,32],[15,9,15,33],[5,20,5,24],[12,29,12,32],[16,18,16,20],[42,29,42,32],[37,29,37,32],[27,29,27,32],[9,9,9,33],[8,9,8,33],[13,10,13,13],[13,29,13,32],[11,9,11,33],[39,9,39,33],[41,9,41,33],[21,29,21,32],[35,10,35,13],[33,29,33,32],[29,10,29,11],[24,9,24,33],[18,29,18,32],[46,18,46,20],[43,10,43,13],[44,10,44,11],[44,13,44,15],[46,10,46,12],[46,14,46,16],[45,9,45,33],[43,29,43,32],[43,20,43,24]]}
[null,null,null,null,null,null,null,null,null,null,null,null,null,null,null,null,null,null,null,null,null,null,null,null,null,null,null,null,null,null,"（別　紙）"]
[]
[]
["(","その他の調査者）",null,null,null,null,null,null,null,null,null,null,null,null,null,null,null,"（石川県建築住宅センター",null,null,null,null,null,null,null,null,null,"登録","第",null,null,null,null,"号）"]
[null,"【イ．資格等】"]
[null,null,null,null,null,null,null,null,null,"（",null,null,null,null,"）建築士",null,null,null,null,"（",null,null,null,null,null,"）",null,"登録","第",null,null,null,null,"号"]
[null,null,null,null,null,null,null,null,null,"特定建築物調査員",null,null,null,null,null,null,null,null,null,null,null,null,null,null,null,null,null,null,"第",null,null,null,null,"号"]
[]
[null,"【ロ．氏名のフリガナ】"]
[null,"【ハ．氏名】",null,null,null,null,null,null,null,"　"]
[]
[null,"【ニ．勤務先】",null,null,null,null,null,null,null,"　"]
[null,null,null,null,null,null,null,null,null,null,null,null,null,null,null,null,null,"（石川県建築住宅センター",null,null,null,null,null,null,null,null,null,"登録","第",null,null,null,null,"号）"]
[null,null,null,null,null,null,null,null,null,"（",null,null,null,null,"）建築士事務所",null,null,null,null,"（",null,null,null,null,null,null,null,"）知事登録","第",null,null,null,null,"号"]
[null,"【ホ．郵便番号】",null,null,null,null,null,null,null,"〒",null,null,"－"]
[null,"【へ．所在地】"]
[null,"【ト．電話番号】",null,null,null,null,null,null,null,"（",null,null,null,"）",null,null,null,"－"]
[]
["(","その他の調査者）",null,null,null,null,null,null,null,null,null,null,null,null,null,null,null,"（石川県建築住宅センター",null,null,null,null,null,null,null,null,null,"登録","第",null,null,null,null,"号）"]
[null,"【イ．資格等】"]
[null,null,null,null,null,null,null,null,null,"（",null,null,null,null,"）建築士",null,null,null,null,"（",null,null,null,null,null,"）",null,"登録","第",null,null,null,null,"号"]
[null,null,null,null,null,null,null,null,null,"特定建築物調査員",null,null,null,null,null,null,null,null,null,null,null,null,null,null,null,null,null,null,"第",null,null,null,null,"号"]
[]
[null,"【ロ．氏名のフリガナ】"]
[null,"【ハ．氏名】",null,null,null,null,null,null,null,"　"]
[]
[null,"【ニ．勤務先】",null,null,null,null,null,null,null,"　"]
[null,null,null,null,null,null,null,null,null,null,null,null,null,null,null,null,null,"（石川県建築住宅センター",null,null,null,null,null,null,null,null,null,"登録","第",null,null,null,null,"号）"]
[null,null,null,null,null,null,null,null,null,"（",null,null,null,null,"）建築士事務所",null,null,null,null,"（",null,null,null,null,null,null,null,"）知事登録","第",null,null,null,null,"号"]
[null,"【ホ．郵便番号】",null,null,null,null,null,null,null,"〒",null,null,"－"]
[null,"【へ．所在地】"]
[null,"【ト．電話番号】",null,null,null,null,null,null,null,"（",null,null,null,"）",null,null,null,"－"]
[]
["(","その他の調査者）",null,null,null,null,null,null,null,null,null,null,null,null,null,null,null,"（石川県建築住宅センター",null,null,null,null,null,null,null,null,null,"登録","第",null,null,null,null,"号）"]
[null,"【イ．資格等】"]
[null,null,null,null,null,null,null,null,null,"（",null,null,null,null,"）建築士",null,null,null,null,"（",null,null,null,null,null,"）",null,"登録","第",null,null,null,null,"号"]
[null,null,null,null,null,null,null,null,null,"特定建築物調査員",null,null,null,null,null,null,null,null,null,null,null,null,null,null,null,null,null,null,"第",null,null,null,null,"号"]
[]
[null,"【ロ．氏名のフリガナ】"]
[null,"【ハ．氏名】",null,null,null,null,null,null,null,"　"]
[]
[null,"【ニ．勤務先】",null,null,null,null,null,null,null,"　"]
[null,null,null,null,null,null,null,null,null,null,null,null,null,null,null,null,null,"（石川県建築住宅センター",null,null,null,null,null,null,null,null,null,"登録","第",null,null,null,null,"号）"]
[null,null,null,null,null,null,null,null,null,"（",null,null,null,null,"）建築士事務所",null,null,null,null,"（",null,null,null,null,null,null,null,"）知事登録","第",null,null,null,null,"号"]
[null,"【ホ．郵便番号】",null,null,null,null,null,null,null,"〒",null,null,"－"]
[null,"【へ．所在地】"]
[null,"【ト．電話番号】",null,null,null,null,null,null,null,"（",null,null,null,"）",null,null,null,"－"]

{"sheet":"③付近見取図","index":4,"n_rows":47,"n_cols":15,"rows_kept":47,"cut":false,"hidden":false,"merged":[[46,2,46,16]]}
[]
[null,"　付近見取図",null,null,null,null,null,null,null,null,"　",null,null,null,"添付図があれば不用"]
[null,"\n\n\n\n\n\n\n\n"]
[]
[]
[]
[]
[]
[]
[]
[]
[]
[]
[]
[]
[]
[]
[]
[]
[]
[]
[]
[]
[]
[]
[]
[]
[]
[]
[]
[]
[]
[]
[]
[]
[]
[]
[]
[]
[]
[]
[]
[]
[]
[]
[]
[null,null,"注意　付近見取図には、方位、道路および目標となる地物を明示して下さい。"]

{"sheet":"④調査結果書","index":5,"n_rows":37,"n_cols":17,"rows_kept":37,"cut":false,"hidden":false,"merged":[[4,0,4,9],[5,0,5,9],[30,6,30,14],[31,6,31,14],[18,9,18,17],[8,3,8,17],[9,3,9,17],[10,3,10,12],[19,9,19,17],[12,3,12,4],[16,9,16,10],[26,3,26,4],[36,6,36,14],[35,6,35,14],[20,9,20,17],[21,9,21,10],[21,12,21,13],[21,15,21,16]]}
[null,null,null,null,null,null,"建築物定期調査結果書"]
[]
["建築物所有者　　又は　　管理者"]
[]
[]
[null,null,null,null,null,null,null,null,null,null,"様"]
[]
[]
[null,null,"建築物の所在地"]
[null,null,"名　　称"]
[null,null,"用　　途"]
[]
[null,null,"調査年月日","令和",null,null,"年",null,"月",null,"日"]
[]
[]
[null,"上記建築物について建築基準法第１２条第１項の規定により調査した結果は次のとおりです。"]
[null,null,null,null,null,null,null,null,null,"令和",null,null,"年",null,"月",null,"日"]
[]
[null,null,null,null,null,"調査者",null,"住　所"]
[null,null,null,null,null,null,null,"氏　名"]
[null,null,null,null,null,null,null,"所　属"]
[null,null,null,null,null,null,null,"電　話　（",null,null,null,"）",null,null,"－"]
[]
[]
[]
[null,null,"本書の内容を確認しました。"]
[null,null,null,"令和",null,null,"年",null,"月",null,"日"]
[]
[]
[null,null,null,"建築物所有者　　又は　　管理者"]
[]
[null,null,null,"氏　　　　名"]
[]
[]
[null,null,null,"調査立会者"]
[]
[null,null,null,"氏　　　　名"]

{"sheet":"⑤建物履歴調査票","index":6,"n_rows":61,"n_cols":30,"rows_kept":61,"cut":false,"hidden":false,"merged":[[33,6,33,7],[34,6,34,7],[33,12,33,13],[34,12,34,13],[33,9,33,10],[34,9,34,10],[31,9,31,10],[13,21,13,22],[13,25,13,28],[13,18,13,19],[32,6,32,7],[30,0,30,10],[25,0,25,10],[26,0,26,10],[28,0,28,10],[32,9,32,10],[31,1,31,5],[32,1,32,5],[14,23,14,28],[23,25,23,28],[19,25,19,28],[13,10,13,14],[0,24,0,27],[3,0,3,27],[5,0,5,23],[9,15,9,16],[9,18,9,19],[9,21,9,22],[9,25,9,28],[9,10,9,14],[33,1,33,5],[34,1,34,5],[10,23,10,28],[24,23,24,28],[32,12,32,13],[31,19,31,28],[32,19,32,28],[19,21,19,22],[33,19,33,28],[34,19,34,28],[13,15,13,16],[29,0,29,10],[31,6,31,7],[20,23,20,28],[31,12,31,13],[23,15,23,16],[19,10,19,14],[23,10,23,14],[19,15,19,16],[23,18,23,19],[23,21,23,22],[19,18,19,19]]}
[null,null,null,null,null,null,null,null,null,null,null,null,null,null,null,null,null,null,null,null,null,null,null,"(",null,null,null,null,")","棟"]
[]
[]
["建物履歴調査票"]
[]
["1．関連図書の整備状況"]
["　【イ．確認に要した図書】",null,null,null,null,null,null,null,null,null,"（"]
[]
["　【ロ．初回の確認済証】　"]
[null,null,null,null,null,"交付番号",null,null,null,null,"昭和 ・平成・令和",null,null,null,null,null,null,"年",null,null,"月",null,null,"日","第",null,null,null,null,"号"]
[null,null,null,null,null,null,"交付者",null,null,null,null,null,null,null,null,null,null,null,null,null,null,null,"（",null,null,null,null,null,null,"）"]
[]
["　【ハ．直近の確認済証】"]
[null,null,null,null,null,"交付番号",null,null,null,null,"昭和 ・平成・令和",null,null,null,null,null,null,"年",null,null,"月",null,null,"日","第",null,null,null,null,"号"]
[null,null,null,null,null,null,"交付者",null,null,null,null,null,null,null,null,null,null,null,null,null,null,null,"（",null,null,null,null,null,null,"）"]
[]
["　【ニ．完了検査に要した図書】"]
[]
["　【ホ．初回の検査済証】"]
[null,null,null,null,null,"交付番号",null,null,null,null,"昭和 ・平成・令和",null,null,null,null,null,null,"年",null,null,"月",null,null,"日","第",null,null,null,null,"号"]
[null,null,null,null,null,null,"交付者",null,null,null,null,null,null,null,null,null,null,null,null,null,null,null,"（",null,null,null,null,null,null,"）"]
[]
["　【ヘ．直近の検査済証】"]
[null,null,null,null,null,"交付番号",null,null,null,null,"昭和 ・平成・令和",null,null,null,null,null,null,"年",null,null,"月",null,null,"日","第",null,null,null,null,"号"]
[null,null,null,null,null,null,"交付者",null,null,null,null,null,null,null,null,null,null,null,null,null,null,null,"（",null,null,null,null,null,null,"）"]
[]
["　【ト．維持保全に関する準則又は計画】"]
[]
["　【チ．前回の調査に関する書類の写し】　"]
[]
["2．主な改修・修繕等の経緯及び内容"]
[null,"昭和 ・平成・令和",null,null,null,null,null,null,"年",null,null,"月",null,null,"日",null,null,"概要（",null,null,null,null,null,null,null,null,null,null,null,"）"]
[null,"昭和 ・平成・令和",null,null,null,null,null,null,"年",null,null,"月",null,null,"日",null,null,"概要（",null,null,null,null,null,null,null,null,null,null,null,"）"]
[null,"昭和 ・平成・令和",null,null,null,null,null,null,"年",null,null,"月",null,null,"日",null,null,"概要（",null,null,null,null,null,null,null,null,null,null,null,"）"]
[null,"昭和 ・平成・令和",null,null,null,null,null,null,"年",null,null,"月",null,null,"日",null,null,"概要（",null,null,null,null,null,null,null,null,null,null,null,"）"]
[]
["3．主な改修・修繕等の履歴配置図・平面図等"]
[]
[]
[]
[]
[]
[]
[]
[]
[]
[]
[]
[]
[]
[]
[]
[]
[]
[]
[]
[]
[]
[]
[]
[null,null,null,null,"　"]

{"sheet":"作業用","index":7,"n_rows":30,"n_cols":6,"rows_kept":30,"cut":false,"hidden":true,"merged":[]}
[]
["⑥調査結果表",null,null,null,null,"⑦任意様式"]
[null,"平成",null,1,null,1]
[null,"（平成"]
[null,null,null,1,null,1]
[null,null,null,1]
[null,null,null,1,null,1]
[]
[null,null,null,1,null,1]
[]
[null,null,null,1,null,1]
[null,null,null,2]
[null,null,null,1,null,1]
[]
[null,null,null,1]
[]
[]
[null,null,null,1]
[]
[]
[null,null,null,1]
[]
[]
[null,null,null,1]
[]
[]
[null,null,null,1]
[]
[]
[null,null,null,1]

{"sheet":"⑥調査結果表","index":8,"n_rows":212,"n_cols":19,"rows_kept":212,"cut":false,"hidden":false,"merged":[[148,1,149,1],[150,1,151,1],[89,1,90,3],[89,4,89,5],[89,8,89,9],[89,10,89,12],[90,4,90,5],[90,8,90,9],[90,10,90,12],[70,1,72,1],[73,1,75,1],[0,8,0,11],[185,9,185,12],[34,10,34,12],[35,10,35,12],[33,8,33,9],[183,10,184,10],[70,8,70,9],[186,9,187,9],[186,10,187,10],[186,11,187,11],[186,12,187,12],[182,9,182,12],[183,9,184,9],[183,11,184,11],[105,8,105,9],[106,8,106,9],[103,8,103,9],[104,8,104,9],[100,8,100,9],[97,8,97,9],[98,8,98,9],[2,0,2,12],[11,0,13,0],[5,8,5,12],[6,8,6,12],[7,8,7,12],[5,3,5,7],[6,3,6,7],[9,3,9,7],[11,6,11,8],[8,3,8,7],[4,8,4,12],[155,1,155,5],[153,1,153,5],[154,1,154,5],[125,8,125,9],[112,4,112,5],[115,8,115,9],[126,8,126,9],[127,8,127,9],[147,8,147,9],[119,4,119,5],[108,8,108,9],[110,8,110,9],[109,8,109,9],[118,8,118,9],[117,8,117,9],[119,8,119,9],[111,4,111,5],[112,8,112,9],[114,8,114,9],[111,8,111,9],[123,8,123,9],[120,8,120,9],[121,8,121,9],[116,8,116,9],[124,8,124,9],[122,8,122,9],[113,8,113,9],[107,8,107,9],[149,8,149,9],[150,8,150,9],[134,8,134,9],[138,8,138,9],[143,8,143,9],[141,8,141,9],[145,8,145,9],[137,8,137,9],[146,8,146,9],[140,8,140,9],[148,8,148,9],[151,8,151,9],[159,9,160,9],[159,10,160,10],[157,9,157,12],[159,12,160,12],[151,10,151,12],[153,10,153,12],[154,10,154,12],[155,10,155,12],[153,8,153,9],[159,11,160,11],[158,9,158,12],[154,8,154,9],[161,9,161,12],[162,9,163,9],[162,12,163,12],[164,9,164,12],[165,9,166,9],[177,9,178,9],[177,11,178,11],[177,12,178,12],[177,10,178,10],[174,11,175,11],[174,12,175,12],[176,9,176,12],[185,3,187,4],[185,5,187,8],[182,3,184,4],[179,3,181,4],[179,5,181,8],[182,5,184,8],[185,0,187,0],[185,1,187,2],[179,9,179,12],[180,9,181,9],[180,10,181,10],[180,11,181,11],[183,12,184,12],[180,12,181,12],[182,0,184,0],[176,1,178,2],[164,0,166,0],[164,1,166,2],[182,1,184,2],[170,5,172,8],[176,0,178,0],[170,0,172,0],[179,0,181,0],[179,1,181,2],[176,3,178,4],[176,5,178,8],[112,2,116,3],[117,2,117,3],[118,2,119,3],[145,2,146,3],[192,3,192,8],[108,1,111,3],[131,2,132,3],[143,4,143,5],[139,4,139,5],[143,2,144,3],[155,8,155,9],[151,4,151,5],[144,4,144,5],[170,1,172,2],[173,9,173,12],[174,9,175,9],[161,1,163,2],[161,3,163,4],[162,10,163,10],[167,5,169,8],[168,10,169,10],[164,3,166,4],[167,1,169,2],[167,3,169,4],[157,3,157,4],[157,5,157,8],[173,5,175,8],[156,0,156,3],[170,3,172,4],[170,9,170,12],[171,9,172,9],[157,1,157,2],[158,0,160,0],[161,0,163,0],[167,9,167,12],[168,9,169,9],[165,12,166,12],[168,12,169,12],[165,10,166,10],[165,11,166,11],[162,11,163,11],[171,10,172,10],[171,11,172,11],[171,12,172,12],[173,0,175,0],[173,1,175,2],[167,0,169,0],[168,11,169,11],[16,10,16,12],[21,4,21,5],[18,4,18,5],[19,4,19,5],[17,4,17,5],[19,8,19,9],[18,10,18,12],[195,1,196,12],[158,5,160,8],[158,3,160,4],[158,1,160,2],[174,10,175,10],[189,6,189,8],[161,5,163,8],[164,5,166,8],[191,3,191,8],[173,3,175,4],[106,4,106,5],[107,4,107,5],[137,4,137,5],[125,4,125,5],[193,3,193,8],[194,3,194,12],[135,8,135,9],[4,3,4,7],[20,1,21,3],[20,4,20,5],[17,1,19,3],[4,0,9,1],[6,2,9,2],[14,1,14,12],[16,4,16,5],[15,8,15,9],[13,8,13,9],[12,6,13,6],[9,8,9,12],[8,8,8,12],[7,3,7,7],[11,1,13,5],[11,10,13,12],[15,10,15,12],[18,8,18,9],[21,10,21,12],[19,10,19,12],[20,10,20,12],[17,8,17,9],[21,8,21,9],[17,10,17,12],[20,8,20,9],[27,1,28,3],[25,4,25,5],[29,2,34,3],[31,8,31,9],[30,8,30,9],[34,8,34,9],[27,4,27,5],[15,4,15,5],[16,8,16,9],[28,4,28,5],[27,8,27,9],[28,8,28,9],[26,8,26,9],[22,4,22,5],[22,8,22,9],[25,8,25,9],[23,8,23,9],[15,1,15,3],[29,8,29,9],[16,1,16,3],[32,4,32,5],[33,4,33,5],[38,4,38,5],[36,4,36,5],[35,4,35,5],[44,4,44,5],[43,1,43,12],[49,1,50,3],[29,4,29,5],[30,4,30,5],[31,4,31,5],[45,1,48,3],[44,1,44,3],[42,4,42,5],[34,4,34,5],[39,2,40,3],[35,2,38,3],[33,10,33,12],[37,4,37,5],[35,8,35,9],[39,4,39,5],[42,8,42,9],[44,10,44,12],[41,2,42,3],[29,1,42,1],[32,8,32,9],[149,4,149,5],[145,4,145,5],[146,4,146,5],[147,4,147,5],[148,4,148,5],[76,4,76,5],[77,4,77,5],[78,2,78,3],[131,1,141,1],[76,1,78,1],[102,1,102,3],[103,1,104,3],[105,1,106,3],[139,2,141,3],[107,1,107,3],[70,2,72,3],[73,2,75,3],[138,4,138,5],[108,4,108,5],[109,4,109,5],[125,1,130,1],[141,4,141,5],[112,1,124,1],[73,4,73,5],[70,4,70,5],[86,4,86,5],[68,4,68,5],[71,4,71,5],[74,4,74,5],[54,2,54,5],[52,4,52,5],[68,2,68,3],[72,4,72,5],[51,1,52,3],[54,1,58,1],[57,4,57,5],[69,2,69,3],[61,4,61,5],[58,4,58,5],[64,2,67,3],[76,2,77,3],[51,4,51,5],[57,2,58,3],[59,1,69,1],[79,4,79,5],[127,4,127,5],[118,4,118,5],[120,4,120,5],[128,4,128,5],[84,4,84,5],[82,4,82,5],[75,4,75,5],[80,4,80,5],[65,4,65,5],[78,4,78,5],[67,4,67,5],[81,4,81,5],[99,4,99,5],[105,4,105,5],[104,4,104,5],[95,4,95,5],[102,4,102,5],[103,4,103,5],[97,4,97,5],[101,1,101,12],[95,8,95,9],[97,1,100,3],[100,4,100,5],[79,1,86,3],[140,4,140,5],[136,4,136,5],[128,2,130,3],[128,8,128,9],[133,4,133,5],[134,4,134,5],[129,4,129,5],[129,8,129,9],[130,8,130,9],[131,8,131,9],[132,4,132,5],[131,4,131,5],[133,2,138,3],[136,8,136,9],[139,8,139,9],[132,8,132,9],[133,8,133,9],[87,1,88,3],[91,1,96,3],[93,4,93,5],[88,4,88,5],[99,8,99,9],[152,1,152,12],[143,1,146,1],[142,1,142,12],[147,1,147,3],[148,2,149,3],[150,4,150,5],[147,10,147,12],[144,8,144,9],[150,2,151,3],[125,2,127,3],[135,4,135,5],[124,4,124,5],[120,2,124,3],[122,4,122,5],[130,4,130,5],[126,4,126,5],[121,4,121,5],[123,4,123,5],[94,8,94,9],[80,8,80,9],[92,8,92,9],[93,10,93,12],[88,8,88,9],[85,8,85,9],[87,8,87,9],[83,8,83,9],[117,4,117,5],[94,4,94,5],[87,4,87,5],[96,4,96,5],[110,4,110,5],[91,4,91,5],[92,4,92,5],[115,4,115,5],[113,4,113,5],[114,4,114,5],[83,4,83,5],[85,4,85,5],[102,8,102,9],[98,4,98,5],[96,8,96,9],[116,4,116,5],[93,8,93,9],[84,8,84,9],[73,8,73,9],[82,8,82,9],[74,8,74,9],[81,8,81,9],[76,8,76,9],[77,8,77,9],[78,8,78,9],[91,8,91,9],[86,8,86,9],[46,4,46,5],[56,2,56,5],[55,2,55,5],[59,2,63,3],[62,4,62,5],[69,4,69,5],[61,8,61,9],[62,8,62,9],[56,8,56,9],[68,8,68,9],[58,8,58,9],[63,4,63,5],[59,4,59,5],[60,4,60,5],[66,4,66,5],[49,4,49,5],[57,8,57,9],[64,4,64,5],[52,8,52,9],[50,4,50,5],[64,8,64,9],[63,8,63,9],[47,4,47,5],[54,8,54,9],[41,10,41,12],[42,10,42,12],[38,8,38,9],[39,8,39,9],[38,10,38,12],[59,8,59,9],[52,10,52,12],[54,10,54,12],[53,1,53,12],[40,10,40,12],[45,10,45,12],[45,8,45,9],[48,10,48,12],[40,4,40,5],[40,8,40,9],[48,8,48,9],[41,8,41,9],[45,4,45,5],[41,4,41,5],[48,4,48,5],[46,8,46,9],[49,8,49,9],[50,8,50,9],[44,8,44,9],[66,8,66,9],[78,10,78,12],[79,10,79,12],[71,10,71,12],[68,10,68,12],[67,10,67,12],[65,8,65,9],[72,8,72,9],[79,8,79,9],[75,8,75,9],[71,8,71,9],[67,8,67,9],[69,8,69,9],[22,10,22,12],[23,10,23,12],[25,10,25,12],[24,1,24,12],[22,1,23,3],[23,4,23,5],[25,1,26,3],[26,4,26,5],[27,10,27,12],[26,10,26,12],[36,8,36,9],[64,10,64,12],[60,10,60,12],[29,10,29,12],[36,10,36,12],[37,10,37,12],[30,10,30,12],[61,10,61,12],[28,10,28,12],[57,10,57,12],[58,10,58,12],[59,10,59,12],[50,10,50,12],[55,10,55,12],[39,10,39,12],[46,10,46,12],[47,8,47,9],[55,8,55,9],[51,8,51,9],[60,8,60,9],[31,10,31,12],[32,10,32,12],[37,8,37,9],[47,10,47,12],[100,10,100,12],[88,10,88,12],[91,10,91,12],[92,10,92,12],[98,10,98,12],[99,10,99,12],[97,10,97,12],[85,10,85,12],[81,10,81,12],[82,10,82,12],[83,10,83,12],[84,10,84,12],[95,10,95,12],[86,10,86,12],[87,10,87,12],[49,10,49,12],[73,10,73,12],[74,10,74,12],[77,10,77,12],[80,10,80,12],[62,10,62,12],[63,10,63,12],[69,10,69,12],[70,10,70,12],[56,10,56,12],[51,10,51,12],[75,10,75,12],[76,10,76,12],[65,10,65,12],[72,10,72,12],[66,10,66,12],[106,10,106,12],[94,10,94,12],[105,10,105,12],[119,10,119,12],[120,10,120,12],[96,10,96,12],[124,10,124,12],[108,10,108,12],[109,10,109,12],[102,10,102,12],[103,10,103,12],[121,10,121,12],[122,10,122,12],[110,10,110,12],[111,10,111,12],[112,10,112,12],[113,10,113,12],[114,10,114,12],[115,10,115,12],[116,10,116,12],[117,10,117,12],[118,10,118,12],[107,10,107,12],[104,10,104,12],[132,10,132,12],[133,10,133,12],[134,10,134,12],[135,10,135,12],[123,10,123,12],[140,10,140,12],[126,10,126,12],[127,10,127,12],[128,10,128,12],[129,10,129,12],[130,10,130,12],[131,10,131,12],[136,10,136,12],[137,10,137,12],[125,10,125,12],[141,10,141,12],[149,10,149,12],[150,10,150,12],[143,10,143,12],[144,10,144,12],[145,10,145,12],[146,10,146,12],[148,10,148,12],[138,10,138,12],[139,10,139,12]]}
[null,null,null,null,null,null,null,"（",null,null,null,null,") 棟"]
["別記（Ａ４)　"]
["調査結果表"]
[]
["当該調査に関与した調査者",null,null,"　　氏　名",null,null,null,null,"調査者番号"]
[null,null,"代表となる調査者",null,null,null,null,null,1]
[null,null,"その他の調査者",null,null,null,null,null,2]
[null,null,null,null,null,null,null,null,3]
[null,null,null,null,null,null,null,null,4]
[null,null,null,null,null,null,null,null,5]
[]
["番号","調　査　項　目",null,null,null,null,"調査結果",null,null,null,"担当\n調査者\n番号"]
[null,null,null,null,null,null,"指摘\nなし","要是正"]
[null,null,null,null,null,null,null,null,"既　存\n不適格"]
[1,"敷地及び地盤"]
["(1)","地盤",null,null,"地盤沈下等による不陸、傾斜等の状況",null,null,null,null,null,null,null,null,null,null,null,null,1,1]
["(2)","敷地",null,null,"敷地内の排水の状況",null,null,null,null,null,null,null,null,null,null,null,null,2,2]
["(3)","敷地内の通路",null,null,"敷地内の通路の確保の状況",null,null,null,null,null,null,null,null,null,null,null,null,3,3]
["(4)",null,null,3,"有効幅員の確保の状況",null,null,null,null,null,null,null,null,null,null,null,null,4,4]
["(5)",null,null,1,"敷地内の通路の支障物の状況",null,null,null,null,null,null,null,null,null,null,null,null,5,5]
["(6)","塀",null,4,"組積造の塀又は補強コンクリートブロック造の塀等の耐震対策の状況",null,null,null,null,null,null,null,null,null,null,null,null,"空白"]
["(7)",null,null,4,"組積造の塀又は補強コンクリートブロック造の塀等の劣化及び損傷の状況"]
["(8)","擁壁",null,4,"擁壁の劣化及び損傷の状況"]
["(9)",null,null,4,"擁壁の水抜きパイプの維持保全の状況"]
[2,"建築物の外部",null,4,null,null,null,null,null,null,1]
["(1)","基礎",null,4,"基礎の沈下等の状況"]
["(2)",null,null,4,"基礎の劣化及び損傷の状況"]
["(3)","土台（木造に限る。）",null,4,"土台の沈下等の状況"]
["(4)",null,null,null,"土台の劣化及び損傷の状況"]
["(5)","外壁","躯体等",null,"外壁、軒裏及び外壁の開口部で延焼のおそれのある部分の防火対策の状況"]
["(6)",null,null,null,"木造の外壁躯体の劣化及び損傷の状況"]
["(7)",null,null,null,"組積造の外壁躯体の劣化及び損傷の状況"]
["(8)",null,null,null,"補強コンクリートブロック造の外壁躯体の劣化及び損傷の状況"]
["(9)",null,null,null,"鉄骨造の外壁躯体の劣化及び損傷の状況"]
["(10)",null,null,null,"鉄筋コンクリート造及び鉄骨鉄筋コンクリート造の外壁躯体の劣化及び損傷の状況"]
["(11)",null,"外装仕上げ材等",null,"タイル、石貼り等（乾式工法によるものを除く。）、モルタル等の劣化及び損傷の状況"]
["(12)",null,null,null,"乾式工法によるタイル、石貼り等の劣化及び損傷の状況"]
["(13)",null,null,null,"金属系パネル（帳壁を含む。）の劣化及び損傷の状況"]
["(14)",null,null,null,"コンクリート系パネル（帳壁を含む。）の劣化及び損傷の状況"]
["(15)",null,"窓サッシ等",null,"サッシ等の劣化及び損傷の状況"]
["(16)",null,null,null,"はめ殺し窓のガラスの固定の状況"]
["(17)",null,"外壁に緊結された広告板、空調室外機等",null,"機器本体の劣化及び損傷の状況"]
["(18)",null,null,null,"支持部分等の劣化及び損傷の状況"]
[3,"屋上及び屋根",null,null,null,null,null,null,null,null,1]
["(1)","屋上面",null,null,"屋上面の劣化及び損傷の状況"]
["(2)","屋上周り（屋上面を除く。）",null,null,"パラペットの立上り面の劣化及び損傷の状況"]
["(3)",null,null,null,"笠木モルタル等の劣化及び損傷の状況"]
["(4)",null,null,null,"金属笠木の劣化及び損傷の状況"]
["(5)",null,null,null,"排水溝（ドレーンを含む。）の劣化及び損傷の状況"]
["(6)","屋根",null,null,"屋根の防火対策の状況"]
["(7)",null,null,null,"屋根の劣化及び損傷の状況"]
["(8)","機器及び工作物（冷却塔設備、広告塔等）",null,null,"機器、工作物本体及び接合部の劣化及び損傷の状況"]
["(9)",null,null,null,"支持部分等の劣化及び損傷の状況"]
[4,"建築物の内部",null,null,null,null,null,null,null,null,1]
["(1)★","防火区画","令第112条第11項から第13項までに規定する区画の状況"]
["(2)★",null,"令第112条第１項、第４項、第５項又は第７項から第10項までの各項に規定する区画の状況"]
["(3)★",null,"令第112条第18項に規定する区画の状況"]
["(4)★",null,"防火区画の外周部",null,"令第112条第16項に規定する外壁等及び同条第17項に規定する防火設備の処置の状況"]
["(5)★",null,null,null,"令第112条第16項に規定する外壁等及び同条第17項に規定する防火設備の劣化及び損傷の状況"]
["(6)","壁の室内に面する部分","躯体等",null,"木造の壁の室内に面する部分の躯体の劣化及び損傷の状況"]
["(7)",null,null,null,"組積造の壁の室内に面する部分の躯体の劣化及び損傷の状況"]
["(8)",null,null,null,"補強コンクリートブロック造の壁の室内に面する部分の躯体の劣化及び損傷の状況"]
["(9)",null,null,null,"鉄骨造の壁の室内に面する部分の躯体の劣化及び損傷の状況"]
["(10)",null,null,null,"鉄筋コンクリート造及び鉄骨鉄筋コンクリート造の壁の室内に面する部分の躯体の劣化及び損傷の状況"]
["(11)",null,"耐火構造の壁又は準耐火構造の壁（防火区画を構成する壁等に限る。）",null,"準耐火性能等の確保の状況"]
["(12)",null,null,null,"部材の劣化及び損傷の状況"]
["(13)",null,null,null,"鉄骨の耐火被覆の劣化及び損傷の状況"]
["(14)",null,null,null,"給水管、配電管その他の管又は風道の区画貫通部の充填等の処理の状況"]
["(15)",null,"令第114条に規定する界壁、間仕切壁及び隔壁",null,"令第114条に規定する界壁、間仕切壁及び隔壁の状況"]
["(16)",null,"令第128条の5各項に規定する建築物の壁の室内に面する部分",null,"室内に面する部分の仕上げの維持保全の状況"]
["(17)","床","躯体等",null,"木造の床躯体の劣化及び損傷の状況"]
["(18)",null,null,null,"鉄骨造の床躯体の劣化及び損傷の状況"]
["(19)",null,null,null,"鉄筋コンクリート造及び鉄骨鉄筋コンクリート造の床躯体の劣化及び損傷の状況"]
["(20)","床","耐火構造の床又は準耐火構造の床（防火区画を構成する床に限る。）",null,"準耐火性能等の確保の状況"]
["(21)",null,null,null,"部材の劣化及び損傷の状況"]
["(22)",null,null,null,"給水管、配電管その他の管又は風道の区画貫通部の充填等の処理の状況"]
["(23)","天井","令第128条の5各項に規定する建築物の天井の室内に面する部分",null,"室内に面する部分の仕上げの維持保全の状況"]
["(24)",null,null,null,"室内に面する部分の仕上げの劣化及び損傷の状況"]
["(25)",null,"特定天井",null,"特定天井の天井材の劣化及び損傷の状況"]
["(26)★","防火設備（防火扉、防火シャッターその他これらに類するものに限る。）又は戸",null,null,"区画に対応した防火設備又は戸の設置の状況"]
["(27)★",null,null,null,"居室から地上へ通じる主たる廊下、階段その他の通路に設置された防火設備又は戸におけるくぐり戸の設置の状況"]
["(28)★",null,null,null,"昭和48年建設省告示第2563号第１第１号ロに規定する基準への適合の状況"]
["(29)★",null,null,null,"防火扉又は戸の開放方向"]
["(30)★",null,null,null,"常時閉鎖又は作動した状態にある防火設備又は戸（以下「常閉防火設備等」という。）の本体と枠の劣化及び損傷の状況"]
["(31)★",null,null,null,"常閉防火設備等の閉鎖又は作動の状況"]
["(32)★",null,null,null,"常閉防火設備等の閉鎖又は作動の障害となる物品の放置の状況"]
["(33)★",null,null,null,"常閉防火扉等の固定の状況"]
["(34)","照明器具、懸垂物等",null,null,"照明器具、懸垂物等の落下防止対策の状況　"]
["(35)",null,null,null,"防火設備又は戸の閉鎖の障害となる照明器具、懸垂物等の状況"]
["(36)","警報設備",null,null,"警報設備の設置の状況"]
["(37)",null,null,null,"警報設備の劣化及び損傷の状況"]
["(38)","居室の採光及び換気",null,null,"採光のための開口部の面積の確保の状況"]
["(39)",null,null,null,"採光の妨げとなる物品の放置の状況"]
["(40)",null,null,null,"換気のための開口部の面積の確保の状況"]
["(41)",null,null,null,"換気設備の設置の状況"]
["(42)",null,null,null,"換気設備の作動の状況"]
["(43)",null,null,2,"換気の妨げとなる物品の放置の状況"]
["(44)","石綿等を添加した建築材料　",null,3,"吹付け石綿及び吹付けロックウールでその含有する石綿の重量が当該建築材料の重量の0.1パーセントを超えるもの（以下「吹付け石綿等」という。）の使用の状況"]
["(45)",null,null,4,"吹付け石綿等の劣化の状況　",null,null,null,null,null,null,null,null,null,"　"]
["(46)",null,null,4,"除去又は囲い込み若しくは封じ込めによる飛散防止措置の実施の状況　"]
["(47)",null,null,4,"囲い込み又は封じ込めによる飛散防止措置の劣化及び損傷の状況　",null,null,null,null,null,null,null,null,null,"　"]
[5,"避難施設等",null,4,null,null,null,null,null,null,1]
["(1)★","令第120条第２項に規定する通路",null,4,"令第120条第２項に規定する通路の確保の状況"]
["(2)★","廊下",null,4,"\n幅の確保の状況\n"]
["(3)★",null,null,4,"物品の放置の状況"]
["(4)★","出入口",null,4,"出入口の確保の状況"]
["(5)★",null,null,null,"物品の放置の状況"]
["(6)★","屋上広場",null,null,"屋上広場の確保の状況"]
["(7)","避難上有効なバルコニー",null,null,"避難上有効なバルコニーの確保の状況"]
["(8)",null,null,null,"手すり等の劣化及び損傷の状況"]
["(9)",null,null,null,"物品の放置の状況"]
["(10)",null,null,null,"避難器具の操作性の確保の状況"]
["(11)","階段","階段",null,"直通階段の設置の状況"]
["(12)",null,null,null,"幅の確保の状況"]
["(13)",null,null,null,"手すりの設置の状況"]
["(14)",null,null,null,"物品の放置の状況"]
["(15)",null,null,null,"階段各部の劣化及び損傷の状況"]
["(16)",null,"屋内に設けられた避難階段",null,"階段室の構造の状況"]
["(17)",null,"屋外に設けられた避難階段",null,"屋内と階段との間の防火区画の確保の状況"]
["(18)",null,null,null,"開放性の確保の状況"]
["(19)",null,"特別避難階段",null,"バルコニー又は付室の構造及び面積の確保の状況"]
["(20)",null,null,null,"階段室又は付室（以下「付室等」という。）の排煙設備の設置の状況"]
["(21)",null,null,null,"付室等の排煙設備の作動の状況"]
["(22)",null,null,null,"付室等の外気に向かって開くことができる窓の状況"]
["(23)",null,null,null,"物品の放置の状況"]
["(24)","排煙設備等","防煙壁",null,"防煙区画の設置の状況"]
["(25)",null,null,null,"防煙壁の劣化及び損傷の状況"]
["(26)",null,null,null,"可動式防煙壁の作動の状況"]
["(27)",null,"排煙設備",null,"排煙設備の設置の状況"]
["(28)",null,null,null,"排煙設備の作動の状況"]
["(29)",null,null,null,"排煙口の維持保全の状況"]
["(30)","その他の設備等","非常用の進入口等",null,"非常用の進入口等の設置の状況"]
["(31)",null,null,null,"非常用の進入口等の維持保全の状況"]
["(32)",null,"非常用エレベーター",null,"乗降ロビーの構造及び面積の確保の状況"]
["(33)",null,null,null,"乗降ロビー等の排煙設備の設置の状況"]
["(34)",null,null,null,"乗降ロビー等の排煙設備の作動の状況"]
["(35)",null,null,null,"乗降ロビー等の外気に向かって開くことができる窓の状況"]
["(36)",null,null,null,"物品の放置の状況"]
["(37)",null,null,null,"非常用エレベーターの作動の状況"]
["(38)",null,"非常用の照明装置",null,"非常用の照明装置の設置の状況"]
["(39)",null,null,null,"非常用の照明装置の作動の状況"]
["(40)",null,null,null,"照明の妨げとなる物品の放置の状況"]
[6,"その他",null,null,null,null,null,null,null,null,1]
["(1)","特殊な構造等","膜構造建築物の膜体、取付部材等",null,"膜体及び取付部材の劣化及び損傷の状況"]
["(2)",null,null,null,"膜張力及びケーブル張力の状況"]
["(3)",null,"免震構造建築物の免震層及び免震装置",null,"免震装置の劣化及び損傷の状況（免震装置が可視状態にある場合に限る。）"]
["(4)",null,null,null,"上部構造の可動の状況"]
["(5)","避雷設備",null,null,"避雷針、避雷導線等の劣化及び損傷の状況"]
["(6)","煙突","建築物に設ける煙突",null,"煙突本体及び建築物との接合部の劣化及び損傷の状況"]
["(7)",null,null,null,"付帯金物の劣化及び損傷の状況"]
["(8)","煙突","令第138条第１項第一号に掲げる煙突",null,"煙突本体の劣化及び損傷の状況"]
["(9)",null,null,null,"付帯金物の劣化及び損傷の状況"]
[7,"上記以外の調査項目",null,null,null,null,null,null,null,null,1]
["(1)"]
["(2)"]
["(3)"]
["特記事項"]
["番号","調査項目",null,"指摘の具体的内容等",null,"改善策の具体的内容等",null,null,null,"改善（予定）\n年月"]
[null,null,null,null,null,null,null,null,null,"令和"]
[null,null,null,null,null,null,null,null,null,null,"年",null,"月"]
[]
[null,null,null,null,null,null,null,null,null,"令和"]
[null,null,null,null,null,null,null,null,null,null,"年",null,"月"]
[]
[null,null,null,null,null,null,null,null,null,"令和"]
[null,null,null,null,null,null,null,null,null,null,"年",null,"月"]
[]
[null,null,null,null,null,null,null,null,null,"令和"]
[null,null,null,null,null,null,null,null,null,null,"年",null,"月"]
[]
[null,null,null,null,null,null,null,null,null,"令和"]
[null,null,null,null,null,null,null,null,null,null,"年",null,"月"]
[]
[null,null,null,null,null,null,null,null,null,"令和"]
[null,null,null,null,null,null,null,null,null,null,"年",null,"月"]
[]
[null,null,null,null,null,null,null,null,null,"令和"]
[null,null,null,null,null,null,null,null,null,null,"年",null,"月"]
[]
[null,null,null,null,null,null,null,null,null,"令和"]
[null,null,null,null,null,null,null,null,null,null,"年",null,"月"]
[]
[null,null,null,null,null,null,null,null,null,"令和"]
[null,null,null,null,null,null,null,null,null,null,"年",null,"月"]
[]
[null,null,null,null,null,null,null,null,null,"令和"]
[null,null,null,null,null,null,null,null,null,null,"年",null,"月"]
[]
[]
[null,null,null,null,null,"総合評価"]
[null,"評価基準"]
[null,"　Ａ1：","指摘なし","「現行法令に適合」していて、指摘のないもの。"]
[null,"　※１Ａ2：","要是正全て既存不適格","「既存不適格」であるが、「第四面に不具合事項」のないもの。"]
[null,"　Ｂ：","要是正以外の不具合","「第四面に不具合事項」のあるもの。"]
[null,"　Ｃ：","要是正","告示で定めた調査基準で「要是正」（全て既存不適格を除く）があるもの。"]
[null,"※1Ａ2：★の項目が既存不適格の場合は、評価は「C」とする。ただし、エレベータに遮煙性能を有する防火設備が未設置の場合（番号：4-(1))を除く。"]
[]
[]
[]
[]
["総合評価","    A1","A1",1]
[null,"    A2","A2"]
[null,"    B","B"]
[null,"    C","C"]
[null,"    空白"]
["調査者番号"]
[null,null,"   1"]
[null,null,"   2"]
[null,null,"   3"]
[null,null,"   4"]
[null,null,"   5"]
[null,null,"（空白）"]

{"sheet":"調査結果表の注意","index":9,"n_rows":36,"n_cols":3,"rows_kept":36,"cut":false,"hidden":false,"merged":[[1,0,1,2]]}
[null,null,"結果調査表（注意）"]
["（注意)"]
[null,"①","　この書類は、特定建築物等ごとに作成してください。"]
[null,"②","　記入欄が不足する場合は、枠を拡大、行を追加して記入するか、別紙に必要な事項を記入し"]
[null,null,"て添えてください。"]
[null,"③","　「当該調査に関与した調査者」欄は、建築基準法施行規則別記第36号の２様式第一面３欄に"]
[null,null,"記入した調査者について記入し、「調査者番号」欄に調査者を特定できる番号、記号等を記入"]
[null,null,"してください。当該建築物の調査を行った調査者が１人の場合は、その他の調査者欄は削除し"]
[null,null,"て構いません。"]
[null,"④","　該当しない調査項目がある場合は、当該項目の「番号」欄から「担当調査者番号」欄までを"]
[null,null,"取消線で抹消してください。"]
[null,"⑤","　「調査結果」欄は、別表（い）欄に掲げる各調査項目ごとに記入してください。"]
[null,"⑥","　「調査結果」欄のうち「要是正」欄は、別表（い）欄に掲げる調査項目について（は）欄に"]
[null,null,"掲げる判定基準に該当する場合に○印を記入してください。"]
[null,"⑦","　「調査結果」欄のうち「指摘なし」欄は、⑥に該当しない場合に○印を記入してください。"]
[null,"⑧","　「既存不適格」欄は、「要是正」欄に○印を記入した場合で、建築基準法第３条第２項の規"]
[null,null,"定の適用を受けているものであることが確認されたときは、○印を記入してください。"]
[null,"⑨","　「担当調査者番号」欄は、「調査に関与した調査者」欄で記入した番号、記号等を記入して"]
[null,null,"ください。ただし、当該建築物の調査を行った調査者が１人の場合は、記入しなくても構いま"]
[null,null,"せん。"]
[null,"⑩","　７「上記以外の調査項目」欄は、第１ただし書の規定により特定行政庁が調査項目を追加し"]
[null,null,"たときに、特定行政庁が追加した調査項目を追加し、⑤から⑧に準じて調査結果等を記入して"]
[null,null,"ください。なお、これらの項目がない場合は、７は削除して構いません。"]
[null,"⑪","　「特記事項」は、調査の結果、要是正の指摘があった場合のほか、指摘がない場合にあって"]
[null,null,"も特記すべき事項がある場合に、該当する調査項目の番号、調査項目を記入し、「指摘の具体"]
[null,null,"的内容等」欄に指摘又は特記すべき事項の具体的内容を記入するとともに、改善済みの場合及"]
[null,null,"び改善策が明らかになっている場合は「改善策の具体的内容等」欄にその内容を記入し、改善"]
[null,null,"した場合は「改善（予定）年月」欄に当該年月を記入し、改善予定年月が明らかになっている"]
[null,null,"場合は「改善（予定）年月」欄に当該年月を（　）書きで記入してください。"]
[null,"⑫","　配置図及び各階平面図を別添１の様式に従い添付し、指摘(特記すべき事項を含む）のあっ"]
[null,null,"た箇所や撮影した写真の位置等を明記してください。"]
[null,"⑬","　要是正とされた調査項目（既存不適格の場合を除く。）については、要是正とされた部分を"]
[null,null,"撮影した写真を別添２の様式に従い添付してください。"]
[]
[null,"※","★の項目が既存不適格の場合は、評価は「Ｃ」とする。ただし、エレベータに遮煙性能を有す"]
[null,null,"る防火設備が未設置の場合（番号：４－（１））を除く。"]

{"sheet":"⑦任意様式","index":10,"n_rows":65,"n_cols":19,"rows_kept":65,"cut":false,"hidden":false,"merged":[[45,0,46,0],[45,1,46,2],[43,0,44,0],[2,0,2,7],[7,7,7,10],[18,1,18,3],[35,1,36,2],[24,7,24,10],[45,5,46,6],[43,3,44,4],[43,1,44,2],[45,3,46,4],[43,5,44,6],[37,5,38,6],[34,5,34,6],[34,1,34,2],[39,0,40,0],[35,0,36,0],[31,7,31,10],[28,1,32,3],[34,3,34,4],[35,3,36,4],[28,7,28,10],[39,3,40,4],[37,1,38,2],[41,1,42,2],[37,3,38,4],[41,3,42,4],[0,6,0,8],[14,1,14,10],[22,1,22,10],[15,1,15,3],[16,1,16,3],[18,7,18,10],[21,1,21,3],[21,7,21,10],[19,1,20,3],[20,7,20,10],[15,7,15,10],[9,1,10,3],[11,1,11,3],[41,0,42,0],[27,7,27,10],[32,7,32,10],[30,7,30,10],[35,5,36,6],[23,1,27,1],[23,2,27,3],[23,7,23,10],[26,7,26,10],[33,0,33,10],[37,0,38,0],[39,5,40,6],[41,5,42,6],[39,1,40,2],[25,7,25,10],[29,7,29,10],[3,0,5,0],[4,5,5,5],[11,7,11,10],[3,5,3,6],[8,7,8,10],[10,7,10,10],[3,1,5,4],[7,1,8,3],[3,7,5,10],[6,1,6,10],[9,7,9,10],[4,6,5,6],[45,7,45,10],[34,7,34,10],[37,7,37,10],[39,7,39,10],[41,7,41,10],[43,7,43,10],[35,7,35,10],[19,7,19,10],[12,1,12,10],[17,1,17,10],[13,1,13,3],[13,7,13,10],[16,7,16,10]]}
[null,null,null,null,null,"（",null,null,null,"） 棟"]
[]
["任意調査結果表"]
["番号","任　意　調　査　項　目",null,null,null,"調査結果",null,"担当\n調査者\n番号"]
[null,null,null,null,null,"指摘\nなし","特記　　事項有"]
[]
["8","敷地及び地盤"]
[-1,"屋外機器等（配電塔、電力等引込柱、外灯等）",null,null,"機器本体の劣化及び損傷の状況",null,null,null,null,null,null,null,null,null,null,null,null,"   1",1]
[-2,null,null,null,"支持部分等の劣化及び損傷の状況",null,null,null,null,null,null,null,null,null,null,null,null,"   2",2]
[-3,"空地、通路等の管理状況",null,null,"通路として利用上の障害物等はないか",null,null,null,null,null,null,null,null,null,null,null,null,"   3",3]
[-4,null,null,null,"空地、通路等の管理は適切か",null,null,null,null,null,null,null,null,null,null,null,null,"   4",4]
[-5,"舗装等の劣化及び損傷状況",null,null,"舗装等にひび割れ、段差等はないか",null,null,null,null,null,null,null,null,null,null,null,null,"   5",5]
["9","建築物の外部",null,null,null,null,null,null,null,null,null,null,null,null,null,null,null," 空白"]
[-1,"シーリング材等の劣化及び損傷状況",null,null,"シーリング材の界面剥離、弾力低下等はみられないか"]
["10","屋上及び屋根"]
[-1,"露出防水層の劣化及び損傷状況",null,null,"防水層に膨れ、ひび割れ、破断等はないか"]
[-2,"出入口の状況",null,null,"屋上の出入口の管理状況は適切か"]
["11","建築物の内部"]
[-1,"収納物の状況",null,null,"防火戸に接近しすぎていないか"]
[-2,"雨漏りの状況",null,null,"外壁から雨漏りはないか"]
[-3,null,null,null,"屋上部から雨漏りはないか"]
[-4,"地下室への漏水の状況",null,null,"地下室に外壁等からの漏水はないか"]
["12","その他"]
[-1,"\n自\n動\n回\n転\nド\nア","自動回転ドアの維持保全状況",null,"自動回転ドアに異常、損傷はないか"]
[-2,null,null,null,"自動回転ドア周辺の監視や安全な通行に関する表示等はあるか"]
[-3,null,null,null,"危険領域に防護柵やガード等はあるか"]
[-4,null,null,null,"接触センサーは作動するか"]
[-5,null,null,null,"定期的な点検は実施しているか"]
[-6,"管理用シャッター(重量もしくは軽量電動)",null,null,"本体と枠等の劣化及び損傷の状況"]
[-7,null,null,null,"点検口の維持保全状況"]
[-8,null,null,null,"スイッチ等の維持保全状況"]
[-9,null,null,null,"駆動機構の状況"]
[-10,null,null,null,"障害物感知装置の作動の状況"]
["特記事項"]
["番号","任意調査項目",null,"指摘の具体的内容等",null,"改善策の具体的内容等",null,"改善(予定)\n年月"]
[null,null,null,null,null,null,null,"令和"]
[null,null,null,null,null,null,null,null,"年",null,"月"]
[null,null,null,null,null,null,null,"令和"]
[null,null,null,null,null,null,null,null,"年",null,"月"]
[null,null,null,null,null,null,null,"令和"]
[null,null,null,null,null,null,null,null,"年",null,"月"]
[null,null,null,null,null,null,null,"令和"]
[null,null,null,null,null,null,null,null,"年",null,"月"]
[null,null,null,null,null,null,null,"令和"]
[null,null,null,null,null,null,null,null,"年",null,"月"]
[null,null,null,null,null,null,null,"令和"]
[null,null,null,null,null,null,null,null,"年",null,"月"]
[]
[]
[]
[]
[]
[]
[]
[]
[]
[]
["担当地差者番号"]
[]
[null,"    1"]
[null,"    2"]
[null,"    3"]
[null,"    4"]
[null,"    5"]
[null,"(空白）　　　　"]

{"sheet":"⑧別添1様式(A3)調査結果図（配置図、各階平面図）","index":11,"n_rows":49,"n_cols":6,"rows_kept":49,"cut":false,"hidden":false,"merged":[[1,0,1,5]]}
["別添１様式（Ａ３）"]
["調　査　結　果　図"]
[null,null,null,null,"番号","調査項目"]
[null,null,null,null,1,"敷地及び地盤"]
[null,null,null,null,"(1)","地盤"]
[null,null,null,null,"(2)","敷地"]
[null,null,null,null,"(3)から(5)","敷地内の通路"]
[null,null,null,null,"(6)から(7)","塀等　"]
[null,null,null,null,"(8)から(9)","擁壁"]
[null,null,null,null,2,"建築物の外部"]
[null,null,null,null,"(1)から(2)","基礎"]
[null,null,null,null,"(3)から(4)","土台（木造に限る。）"]
[null,null,null,null,"(5)から(18)","外壁"]
[null,null,null,null,3,"屋上及び屋根"]
[null,null,null,null,"(1)","屋上面の状況"]
[null,null,null,null,"(2)から(5)","屋上周りの状況（屋上面を除く。）"]
[null,null,null,null,"(6)から(7)","屋根（屋上面を除く。）"]
[null,null,null,null,"(8)から(9)","機器及び工作物（冷却等設備、等）"]
[null,null,null,null,4,"建築物の内部"]
[null,null,null,null,"(1)から(5)","防火区画"]
[null,null,null,null,"(6)から(16)","壁の室内に面する部分"]
[null,null,null,null,"(17)から(22)","床"]
[null,null,null,null,"(23)から(25)","天井"]
[null,null,null,null,"(26)から(33)","防火設備"]
[null,null,null,null,"(34)から(35)","照明器具、懸垂物等"]
[null,null,null,null,"(36)から(37)","警報設備"]
[null,null,null,null,"(38)から(43)","居室の採光及び換気"]
[null,null,null,null,"(44)から(47)","石綿等を添加した建築材料"]
[null,null,null,null,5,"避難施設等"]
[null,null,null,null,"(1)","令第120条第２項に規定する通路"]
[null,null,null,null,"(2)から(3)","廊下"]
[null,null,null,null,"(4)から(5)","出入口"]
[null,null,null,null,"(6)","屋上広場"]
[null,null,null,null,"(7)から(10)","避難上有効なバルコニー"]
[null,null,null,null,"(11)から(23)","階段"]
[null,null,null,null,"(24)から(29)","排煙設備等"]
[null,null,null,null,"(30)から(40)","その他の設備等　"]
[null,null,null,null,6,"その他"]
[null,null,null,null,"(1)から(4)","特殊な構造等"]
[null,null,null,null,"(5)","避雷設備"]
[null,null,null,null,"(6)から(9)","煙突"]
[null,null,null,null,7,"上記以外の調査項目"]
[null,null,null,null,"8(1)から(5)","敷地及び地盤"]
[null,null,null,null,"9(1)","建築物の外部"]
[null,null,null,null,"10(1)から(2)","屋上及び屋根"]
["注）配置図及び各階平面図を添付し、指摘のあった箇所（特記すべき事項を含む）や撮影した写真の位置等を明記すること。",null,null,null,"11(1)から(4)","建築物の内部"]
[null,null,null,null,"12(1)から(10)","その他"]
[]
["- 14 -"]

{"sheet":"⑨別添2様式(A4)関係写真","index":12,"n_rows":51,"n_cols":5,"rows_kept":51,"cut":false,"hidden":false,"merged":[[1,0,1,4],[39,0,39,4],[3,0,4,0],[3,2,3,3],[4,2,4,3],[5,0,5,2],[5,3,5,4],[6,0,6,2],[14,3,14,4],[15,3,15,4],[7,0,7,2],[8,0,8,2],[15,0,15,2],[9,0,9,2],[10,0,10,2],[11,0,11,2],[12,0,12,2],[13,0,13,2],[14,0,14,2],[6,3,6,4],[7,3,7,4],[8,3,8,4],[13,3,13,4],[9,3,9,4],[10,3,10,4],[11,3,11,4],[12,3,12,4],[27,3,27,4],[28,3,28,4],[16,3,16,4],[17,3,17,4],[21,0,22,0],[21,2,21,3],[22,2,22,3],[18,0,18,2],[19,0,19,2],[18,3,18,4],[19,3,19,4],[17,0,17,2],[16,0,16,2],[33,0,33,2],[32,0,32,2],[24,3,24,4],[23,0,23,2],[24,0,24,2],[31,0,31,2],[25,0,25,2],[26,0,26,2],[27,0,27,2],[28,0,28,2],[31,3,31,4],[23,3,23,4],[29,0,29,2],[30,0,30,2],[25,3,25,4],[26,3,26,4],[29,3,29,4],[30,3,30,4],[43,0,43,4],[40,0,40,4],[36,3,36,4],[37,3,37,4],[41,0,41,4],[42,0,42,4],[37,0,37,2],[36,0,36,2],[34,0,34,2],[35,0,35,2],[32,3,32,4],[33,3,33,4],[34,3,34,4],[35,3,35,4]]}
["別添２様式（Ａ４）",null,"　","（",")棟"]
["関係写真"]
[]
["部位","番号","調査項目",null,"調査結果"]
[null,null,null,null,"　　"]
[null,null,null," 特記事項"]
[]
[]
[]
[]
[]
[]
["写真貼付"]
[]
[]
[]
[]
[]
[]
[]
[]
["部位","番号","調査項目",null,"調査結果"]
[]
[null,null,null," 特記事項"]
[]
[]
[]
[]
[]
[]
["写真貼付"]
[]
[]
[]
[]
[]
[]
[]
["（注意）"]
["① この書類は、調査の結果「要是正」かつ「既存不適格」ではない項目について作成してください。また、「既存不適格」及び「指摘なし」の項目についても、特記すべき事項があれば、必要に応じて作成してください。「要是正」の項目がない場合は、この書類は省略しても構いません。"]
["② 記入欄が不足する場合は、枠を拡大、行を追加して記入するか、別紙に必要な事項を記入して添えてください。"]
["③「部位」欄の「番号」、「調査項目」は、それぞれ別記様式の番号、調査項目に対応したものを記入してください。"]
["④「調査結果」欄は、調査の結果、要是正の指摘があった場合は「要是正」のチェックボックスに「レ」マークを入れ、それ以外の場合で特記すべき事項がある場合は「その他」のチェックボックスに「レ」マークを入れてください。"]
["⑤ 写真は、当該部位の外観の状況が確認できるように撮影したものを添付してください。"]
[]
[null,null,null,"調査結果1"]
[null,null,null,"要是正",false]
[null,null,null,"その他",false]
[null,null,null,"調査結果2"]
[null,null,null,"要是正",false]
[null,null,null,"その他",false]

{"sheet":"⑩建築設備の保守点検に関する調書","index":13,"n_rows":40,"n_cols":18,"rows_kept":40,"cut":false,"hidden":false,"merged":[[4,0,9,0],[10,0,17,0],[16,8,16,9],[17,8,17,9],[4,1,5,1],[8,6,9,6],[8,4,9,5],[6,1,7,1],[33,14,33,17],[20,14,20,17],[24,14,24,17],[21,14,21,17],[22,14,22,17],[19,14,19,17],[28,10,28,11],[28,14,28,17],[29,14,29,17],[30,14,30,17],[31,14,31,17],[32,14,32,17],[15,8,15,9],[14,10,14,11],[11,8,11,9],[17,10,17,11],[34,0,37,0],[26,0,27,0],[18,0,21,0],[22,0,25,0],[28,0,33,0],[32,10,32,11],[23,10,23,11],[30,10,30,11],[31,10,31,11],[29,10,29,11],[35,1,37,17],[26,2,27,6],[18,10,18,11],[18,8,18,9],[34,1,34,17],[26,8,26,9],[28,1,29,1],[30,1,31,1],[26,1,27,1],[30,2,31,6],[32,8,32,9],[30,8,30,9],[1,4,1,14],[27,14,27,17],[15,10,15,11],[25,14,25,17],[26,14,26,17],[23,14,23,17],[24,10,24,11],[16,10,16,11],[12,10,12,11],[14,14,14,17],[15,14,15,17],[16,14,16,17],[17,14,17,17],[11,14,11,17],[20,8,20,9],[21,8,21,9],[20,10,20,11],[12,14,12,17],[13,14,13,17],[11,10,11,11],[19,10,19,11],[18,14,18,17],[12,8,12,9],[21,10,21,11],[9,10,9,11],[13,8,13,9],[13,10,13,11],[14,8,14,9],[9,14,9,17],[20,1,21,1],[18,1,19,1],[25,3,25,4],[16,2,17,6],[18,2,19,6],[22,2,22,6],[22,1,23,1],[20,2,21,6],[23,3,23,4],[25,8,25,9],[22,8,22,9],[24,1,25,1],[10,14,10,17],[12,1,13,1],[14,1,15,1],[16,1,17,1],[24,2,24,6],[19,8,19,9],[5,14,5,17],[4,2,5,3],[8,14,8,17],[6,10,6,11],[7,10,7,11],[3,14,3,17],[4,14,4,17],[6,14,6,17],[7,14,7,17],[3,10,3,13],[3,1,3,6],[4,4,5,5],[4,8,4,9],[5,8,5,9],[4,10,4,11],[6,8,6,9],[7,8,7,9],[8,8,8,9],[8,1,9,1],[6,6,7,6],[6,2,7,3],[6,4,7,5],[9,8,9,9],[5,10,5,11],[4,6,5,6],[29,8,29,9],[28,2,29,6],[24,8,24,9],[10,1,11,1],[10,8,10,9],[32,1,33,1],[12,2,13,6],[22,10,22,11],[10,10,10,11],[33,10,33,11],[25,10,25,11],[26,10,26,11],[27,10,27,11],[23,8,23,9],[31,8,31,9],[27,8,27,9],[8,10,8,11],[8,2,9,3],[32,2,33,6],[28,8,28,9],[33,8,33,9],[10,2,11,6],[14,2,15,6]]}
[null,null,null,null,null,null,null,null,null,null,null,null,null,null,"(",null,"）","棟"]
[null,null,null,null,"建築設備の保守点検に関する調書"]
[null,"該当する項目に○印を付け、点検回数、自主点検担当者及び委託点検契約先の名称を記入すること。"]
["設備の名称","種別・設置台数",null,null,null,null,null,null,"点検方法",null,"点検回数等",null,null,null,"自主点検担当者名･委託点検契約\n先の名称"]
["昇降機等",null,"エレベーター",null,null,null,"基",null,"自主点検",null,"日･月･年",null,null,"回"]
[null,null,null,null,null,null,null,null,"委託点検",null,"日･月･年",null,null,"回"]
[null,null,"エスカレーター",null,null,null,"基",null,"自主点検",null,"日･月･年",null,null,"回"]
[null,null,null,null,null,null,null,null,"委託点検",null,"日･月･年",null,null,"回"]
[null,null,"小荷物専用昇降機",null,null,null,"基",null,"自主点検",null,"日･月･年",null,null,"回"]
[null,null,null,null,null,null,null,null,"委託点検",null,"日･月･年",null,null,"回"]
["換気設備",null,"自　然　換　気",null,null,null,null,null,"自主点検",null,"日･月･年",null,null,"回"]
[null,null,null,null,null,null,null,null,"委託点検",null,"日･月･年",null,null,"回"]
[null,null,"機械換気（法定設置の\n中央管理方式の空気\n調和設備以外）",null,null,null,null,null,"自主点検",null,"日･月･年",null,null,"回"]
[null,null,null,null,null,null,null,null,"委託点検",null,"日･月･年",null,null,"回"]
[null,null,"機械換気（任意設置の\n中央管理方式の空気\n調和設備）",null,null,null,null,null,"自主点検",null,"日･月･年",null,null,"回"]
[null,null,null,null,null,null,null,null,"委託点検",null,"日･月･年",null,null,"回"]
[null,null,"機械換気（法定設置の\n中央管理方式の空気\n調和設備）",null,null,null,null,null,"自主点検",null,"日･月･年",null,null,"回"]
[null,null,null,null,null,null,null,null,"委託点検",null,"日･月･年",null,null,"回"]
["排煙設備",null,"自　然　排　煙",null,null,null,null,null,"自主点検",null,"日･月･年",null,null,"回"]
[null,null,null,null,null,null,null,null,"委託点検",null,"日･月･年",null,null,"回"]
[null,null,"機　械　排　煙",null,null,null,null,null,"自主点検",null,"日･月･年",null,null,"回"]
[null,null,null,null,null,null,null,null,"委託点検",null,"日･月･年",null,null,"回"]
["非常用の\n照明装置",null,"予備電源内蔵型",null,null,null,null,null,"自主点検",null,"日･月･年",null,null,"回"]
[null,null,"（概数",null,null,"）",null,null,"委託点検",null,"日･月･年",null,null,"回"]
[null,null,"予備電源別置型",null,null,null,null,null,"自主点検",null,"日･月･年",null,null,"回"]
[null,null,"（概数",null,null,"）",null,null,"委託点検",null,"日･月･年",null,null,"回"]
["給排水設備",null,null,null,null,null,null,null,"自主点検",null,"日･月･年",null,null,"回"]
[null,null,null,null,null,null,null,null,"委託点検",null,"日･月･年",null,null,"回"]
["防火戸及び\n防火シャッター",null,"常　時　閉　鎖　式",null,null,null,null,null,"自主点検",null,"日･月･年",null,null,"回"]
[null,null,null,null,null,null,null,null,"委託点検",null,"日･月･年",null,null,"回"]
[null,null,"温度ヒューズ式",null,null,null,null,null,"自主点検",null,"日･月･年",null,null,"回"]
[null,null,null,null,null,null,null,null,"委託点検",null,"日･月･年",null,null,"回"]
[null,null,"（煙･熱）感知器連動式",null,null,null,null,null,"自主点検",null,"日･月･年",null,null,"回"]
[null,null,null,null,null,null,null,null,"委託点検",null,"日･月･年",null," ","回"]
["備　考","（上記に関して、付け加えたい事柄及びその他の設備点検状況について記入してください。）"]
[]
[]
[]
["注意","法定設置の換気設備とは、建築基準法第２８条第２項及び第３項に基づき設置されたもの"]
[null,null,"内は、別途、定期検査報告書（建築設備等（昇降機及び遊戯施設を除く。））の提出が必要なものを示す。"]

{"sheet":"⑪定期調査報告概要書","index":14,"n_rows":121,"n_cols":27,"rows_kept":121,"cut":false,"hidden":false,"merged":[[39,4,39,25],[42,4,42,25],[26,21,26,24],[26,13,26,16],[38,4,38,12],[37,13,37,16],[36,4,36,25],[96,9,96,15],[94,17,94,22],[92,3,92,5],[88,5,88,6],[75,8,75,10],[80,3,80,5],[74,7,74,8],[78,9,78,14],[87,9,87,15],[87,17,87,22],[89,17,89,22],[81,3,81,5],[84,3,84,5],[84,9,84,15],[31,13,31,17],[89,9,89,15],[90,3,90,5],[25,4,25,25],[31,21,31,24],[34,4,34,25],[32,21,32,24],[33,21,33,24],[28,4,28,25],[29,4,29,25],[31,5,31,8],[102,8,102,9],[79,5,79,6],[80,9,80,15],[85,17,85,22],[92,17,92,22],[90,17,90,22],[86,17,86,22],[79,9,79,15],[91,17,91,22],[85,9,85,15],[84,17,84,22],[95,9,95,15],[95,17,95,22],[94,9,94,15],[91,9,91,15],[92,9,92,15],[98,11,98,12],[100,8,100,25],[98,22,98,23],[86,9,86,15],[87,3,87,5],[91,5,91,6],[88,9,88,15],[86,3,86,5],[90,9,90,15],[120,0,123,25],[104,13,104,25],[105,13,105,25],[113,19,113,24],[110,16,110,23],[104,8,104,9],[117,3,119,26],[114,16,114,23],[104,5,104,6],[105,5,105,6],[105,8,105,9],[109,19,109,24],[103,13,103,25],[102,5,102,6],[103,5,103,6],[96,17,96,22],[103,8,103,9],[102,13,102,25],[3,5,3,15],[27,4,27,12],[9,4,9,25],[10,4,10,25],[12,4,12,25],[5,0,5,23],[11,4,11,12],[16,4,16,12],[24,4,24,25],[20,13,20,17],[14,4,14,25],[15,4,15,25],[17,4,17,25],[20,5,20,8],[20,21,20,24],[21,21,21,24],[22,21,22,24],[23,4,23,25],[26,5,26,8],[55,7,55,9],[93,3,93,5],[93,9,93,15],[93,17,93,22],[85,5,85,6],[88,17,88,22],[77,8,77,10],[78,16,78,23],[35,4,35,25],[52,4,52,26],[43,4,43,25],[44,4,44,25],[45,4,45,25],[48,4,50,26],[89,3,89,5],[37,5,37,8],[69,9,69,15],[70,5,70,23],[73,17,73,22],[54,7,54,9],[37,21,37,24],[65,0,65,23],[64,10,64,24],[40,4,40,23],[62,4,62,26],[58,7,58,9],[76,8,76,10],[80,17,80,22],[83,17,83,22],[82,17,82,22],[81,9,81,15],[57,7,57,9],[56,7,56,9],[83,3,83,5],[82,5,82,6],[82,9,82,15],[83,9,83,15],[81,17,81,22],[79,17,79,22]]}
[]
["第三十六号の三様式（第五条、第六条の三、第十一条の三関係）（Ａ４）"]
[]
[null,null,null,null,null,"定期調査報告書概要書"]
[]
["（第一面）"]
[]
["調査等の概要"]
["【1．所有者】"]
[null,"【イ．氏名のフリガナ】",null,null,{"$f":"IF(①定期調査報告書!J16=0,\"\",①定期調査報告書!J16)","v":""}]
[null,"【ロ．氏名】",null,null,{"$f":"IF(①定期調査報告書!J17=0,\"\",①定期調査報告書!J17)","v":""}]
[null,"【ハ．郵便番号】",null,null,{"$f":"IF(①定期調査報告書!J18=\"\",\"\",①定期調査報告書!I18 & ①定期調査報告書!J18 & ①定期調査報告書!L18 & ①定期調査報告書!M18)","v":""}]
[null,"【ニ．住所】",null,null,{"$f":"IF(①定期調査報告書!I19=0,\"\",①定期調査報告書!I19)","v":""}]
["【2． 管理者】"]
[null,"【イ．氏名のフリガナ】",null,null,{"$f":"IF(①定期調査報告書!J22=0,\"\",①定期調査報告書!J22)","v":""}]
[null,"【ロ．氏名】",null,null,{"$f":"IF(①定期調査報告書!J23=0,\"\",①定期調査報告書!J23)","v":""}]
[null,"【ハ．郵便番号】",null,null,{"$f":"IF(①定期調査報告書!J24=\"\",\"\",①定期調査報告書!I24 & ①定期調査報告書!J24 & ①定期調査報告書!L24 & ①定期調査報告書!M24)","v":""}]
[null,"【ニ．住所】",null,null,{"$f":"IF(①定期調査報告書!I25=0,\"\",①定期調査報告書!I25)","v":""}]
["【3．調査者】"]
[null,"（代表となる調査者）"]
[null,"【イ．資格等】",null,null,"（",{"$f":"IF(①定期調査報告書!J29=0,\"\",①定期調査報告書!J29)","v":""},null,null,null,"）建築士",null,null,"(",{"$f":"IF(①定期調査報告書!T29=\"\",\"\",①定期調査報告書!T29)","v":""},null,null,null,null,null,"）　登録","第",{"$f":"IF(①定期調査報告書!AC29=0,\"\",①定期調査報告書!AC29)","v":""},null,null,null,"号"]
[null,null,null,null,"特定建築物調査員",null,null,null,null,null,null,null,null,null,null,null,null,null,null,null,"第",{"$f":"IF(①定期調査報告書!AC30=0,\"\",①定期調査報告書!AC30)","v":""},null,null,null,"号"]
[]
[null,"【ロ．氏名のフリガナ】",null,null,{"$f":"IF(①定期調査報告書!J32=0,\"\",①定期調査報告書!J32)","v":""}]
[null,"【ハ．氏名】",null,null,{"$f":"IF(①定期調査報告書!J33=0,\"\",①定期調査報告書!J33)","v":"　"}]
[null,"【ニ．勤務先】",null,null,{"$f":"IF(①定期調査報告書!I34=0,\"\",①定期調査報告書!I34)","v":"　"}]
[null,null,null,null,"（",{"$f":"IF(①定期調査報告書!I36=0,\"\",①定期調査報告書!I36)","v":""},null,null,null,"）建築士事務所 ",null,null,"（",{"$f":"IF(①定期調査報告書!T36=0,\"\",①定期調査報告書!T36)","v":""},null,null,null,null,null,"）　知事登録","第",{"$f":"IF(①定期調査報告書!AC36=0,\"\",①定期調査報告書!AC36)","v":""},null,null,null,"号"]
[null,"【ホ．郵便番号】",null,null,{"$f":"IF(①定期調査報告書!J37=\"\",\"\",①定期調査報告書!I37 & ①定期調査報告書!J37 & ①定期調査報告書!L37 & ①定期調査報告書!M37)","v":""}]
[null,"【ヘ．所在地】",null,null,{"$f":"IF(①定期調査報告書!I38=0,\"\",①定期調査報告書!I38)","v":""}]
[null,"【ト．電話番号】",null,null,{"$f":"IF(①定期調査報告書!J39=\"\",\"\",①定期調査報告書!I39 & ①定期調査報告書!J39 & ①定期調査報告書!M39 & ①定期調査報告書!N39  & ①定期調査報告書!Q39  & ①定期調査報告書!R39)","v":""}]
[null,"（その他の調査者）"]
[null,"【イ．資格等】",null,null,"（",{"$f":"IF(①定期調査報告書!J41=0,\"\",①定期調査報告書!J41)","v":""},null,null,null,"）建築士",null,null,"(",{"$f":"IF(①定期調査報告書!T41=0,\"\",①定期調査報告書!T41)","v":""},null,null,null,null,null,"）　登録","第",{"$f":"IF(①定期調査報告書!AC41=0,\"\",①定期調査報告書!AC41)","v":""},null,null,null,"号"]
[null,null,null,null,"特定建築物調査員",null,null,null,null,null,null,null,null,null,null,null,null,null,null,null,"第",{"$f":"IF(①定期調査報告書!AC42=0,\"\",①定期調査報告書!AC42)","v":""},null,null,null,"号"]
[]
[null,"【ロ．氏名のフリガナ】",null,null,{"$f":"IF(①定期調査報告書!J44=0,\"\",①定期調査報告書!J44)","v":""}]
[null,"【ハ．氏名】",null,null,{"$f":"IF(①定期調査報告書!J45=0,\"\",①定期調査報告書!J45)","v":"　"}]
[null,"【ニ．勤務先】",null,null,{"$f":"IF(①定期調査報告書!I46=0,\"\",①定期調査報告書!I46)","v":"　"}]
[null,null,null,null,"（",{"$f":"IF(①定期調査報告書!I48=0,\"\",①定期調査報告書!I48)","v":""},null,null,null,"）建築士事務所 ",null,null,"(",{"$f":"IF(①定期調査報告書!T48=0,\"\",①定期調査報告書!T48)","v":""},null,null,null,null,null,"）　知事登録","第",{"$f":"IF(①定期調査報告書!AC48=0,\"\",①定期調査報告書!AC48)","v":""},null,null,null,"号"]
[null,"【ホ．郵便番号】",null,null,{"$f":"IF(①定期調査報告書!J49=\"\",\"\",①定期調査報告書!I49 & ①定期調査報告書!J49 & ①定期調査報告書!L49 & ①定期調査報告書!M49)","v":""}]
[null,"【ヘ．所在地】",null,null,{"$f":"IF(①定期調査報告書!I50=0,\"\",①定期調査報告書!I50)","v":""}]
[null,"【ト．電話番号】",null,null,{"$f":"IF(①定期調査報告書!J51=\"\",\"\",①定期調査報告書!I51 & ①定期調査報告書!J51 & ①定期調査報告書!M51 & ①定期調査報告書!N51  & ①定期調査報告書!Q51  & ①定期調査報告書!R51)","v":""}]
["【4．報告対象建築物】"]
[null,"【イ．所在地】",null,null,{"$f":"IF(①定期調査報告書!I53=0,\"\",①定期調査報告書!I53)","v":""}]
[null,"【ロ．名称のフリガナ】",null,null,{"$f":"IF(①定期調査報告書!J54=0,\"\",①定期調査報告書!J54)","v":""}]
[null,"【ハ．名称】",null,null,{"$f":"IF(①定期調査報告書!J55=0,\"\",①定期調査報告書!J55)","v":""}]
[null,"【ニ．用途】",null,null,{"$f":"IF(①定期調査報告書!I56=0,\"\",①定期調査報告書!I56)","v":""}]
["【5．調査による指摘の概要】"]
[null,"【イ．指摘の内容】",null,null,null,"要是正の指摘あり",null,null,null,"（",null,"既存不適格）",null,null,null,null,"指摘なし"]
[null,"【ロ．指摘の概要】",null,null,{"$f":"IF(①定期調査報告書!J59=\"\",\"\",①定期調査報告書!J59)","v":""}]
[]
[]
[null,"【ハ．改善予定の有無】",null,null,null,"有",null,"（令和",{"$f":"IF(①定期調査報告書!O60=0,\"\",①定期調査報告書!O60)","v":""},"年",{"$f":"IF(①定期調査報告書!R60=0,\"\",①定期調査報告書!R60)","v":""},"月に改善予定）",null,null,null,null,"無"]
[null,"【ニ．その他特記事項】",null,null,{"$f":"IF(①定期調査報告書!J61=\"\",\"\",①定期調査報告書!J61)","v":""}]
["【6．調査及び検査の状況】"]
[null,"【イ．今回の調査】",null,null,null,null,null,{"$f":"IF(①定期調査報告書!N127=0,\"\",①定期調査報告書!N127)","v":"令和"},null,null,{"$f":"IF(①定期調査報告書!S127=0,\"\",①定期調査報告書!S127)","v":""},"年",null,{"$f":"IF(①定期調査報告書!V127=0,\"\",①定期調査報告書!V127)","v":""},"月",null,{"$f":"IF(①定期調査報告書!Y127=0,\"\",①定期調査報告書!Y127)","v":""},"日実施"]
[null,"【ロ．前回の調査】",null,null,null,"実施",null,{"$f":"IF(①定期調査報告書!N128=0,\"\",①定期調査報告書!N128)","v":"（平成・令和"},null,null,{"$f":"IF(①定期調査報告書!S128=0,\"\",①定期調査報告書!S128)","v":""},"年",null,{"$f":"IF(①定期調査報告書!V128=0,\"\",①定期調査報告書!V128)","v":""},"月",null,{"$f":"IF(①定期調査報告書!Y128=0,\"\",①定期調査報告書!Y128)","v":""},"日報告）",null,null,null,"未実施"]
[null,"【ハ．建築設備の検査】",null,null,null,"実施",null,{"$f":"IF(①定期調査報告書!N129=0,\"\",①定期調査報告書!N129)","v":"（令和"},null,null,{"$f":"IF(①定期調査報告書!S129=0,\"\",①定期調査報告書!S129)","v":""},"年",null,{"$f":"IF(①定期調査報告書!V129=0,\"\",①定期調査報告書!V129)","v":""},"月",null,{"$f":"IF(①定期調査報告書!Y129=0,\"\",①定期調査報告書!Y129)","v":""},"日報告）",null,null,null,"未実施"]
[null,"【ニ．昇降機等の検査】",null,null,null,"実施",null,{"$f":"IF(①定期調査報告書!N130=0,\"\",①定期調査報告書!N130)","v":"（令和"},null,null,{"$f":"IF(①定期調査報告書!S130=0,\"\",①定期調査報告書!S130)","v":""},"年",null,{"$f":"IF(①定期調査報告書!V130=0,\"\",①定期調査報告書!V130)","v":""},"月",null,{"$f":"IF(①定期調査報告書!Y130=0,\"\",①定期調査報告書!Y130)","v":""},"日報告）",null,null,null,"未実施"]
[null,"【ホ．防火設備の検査】",null,null,null,"実施",null,{"$f":"IF(①定期調査報告書!N131=0,\"\",①定期調査報告書!N131)","v":"（令和"},null,null,{"$f":"IF(①定期調査報告書!S131=0,\"\",①定期調査報告書!S131)","v":""},"年",null,{"$f":"IF(①定期調査報告書!V131=0,\"\",①定期調査報告書!V131)","v":""},"月",null,{"$f":"IF(①定期調査報告書!Y131=0,\"\",①定期調査報告書!Y131)","v":""},"日報告）",null,null,null,"未実施"]
["【7．建築物等に係る不具合等の状況】"]
[null,"【イ．不具合等】",null,null,null,null,"有",null,null,"無"]
[null,"【ロ．不具合等の記録】",null,null,null,null,"有",null,null,"無"]
[null,"【ハ．不具合等の概要】"]
[null,"【ニ．改善の状況】",null,null,null,"実施済",null,null,null,null,"改善予定",null,"（令和",{"$f":"IF(①定期調査報告書!T174=\"\",\"\",①定期調査報告書!T174)","v":""},"年",{"$f":"IF(①定期調査報告書!W174=\"\",\"\",①定期調査報告書!W174)","v":""},"月に改善予定）"]
[null,null,null,null,null,"予定なし",null,null,"（理由：",null,null,null,null,null,null,null,null,null,null,null,null,null,null,null,null,"）"]
["（第二面）"]
["建築物及びその敷地に関する事項"]
["【1．敷地の位置】"]
[null,"【イ．防火地域】",null,null,null,null,"防火地域",null,null,null,null,null,null,null,null,null,null,null,"準防火地域"]
[null,null,null,null,null,null,"その他   （",null,null,{"$f":"IF(①定期調査報告書!O71=0,\"\",①定期調査報告書!O71)","v":""},null,null,null,null,null,null,"）",null,"指定なし"]
[null,"【ロ．用途地域】",null,null,null,{"$f":"IF(①定期調査報告書!J72=0,\"\",①定期調査報告書!J72)","v":""}]
["【2．建築物及びその敷地の概要】"]
[null,"【イ．構造】",null,null,null,null,"鉄筋コンクリート造",null,null,null,null,null,null,null,null,"鉄筋鉄骨コンクリート造"]
[null,null,null,null,null,null,"鉄骨造",null,null,null,null,null,null,null,null,"その他（",null,{"$f":"IF(①定期調査報告書!AB75=0,\"\",①定期調査報告書!AB75)","v":""},null,null,null,null,null,"）"]
[null,"【ロ．階数】",null,null,null,null,"地上",{"$f":"IF(①定期調査報告書!N76=0,\"\",①定期調査報告書!N76)","v":""},null,"階",null,"地下",{"$f":"IF(①定期調査報告書!U76=0,\"\",①定期調査報告書!U76)","v":""},"階"]
[null,"【ハ．敷地面積】",null,null,null,null,null,null,{"$f":"IF(①定期調査報告書!K77=0,\"\",①定期調査報告書!K77)","v":""},null,null,"㎡"]
[null,"【ニ．建築面積】",null,null,null,null,null,null,{"$f":"IF(①定期調査報告書!K78=0,\"\",①定期調査報告書!K78)","v":""},null,null,"㎡"]
[null,"【ホ．延べ面積】",null,null,null,null,null,null,{"$f":"IF(①定期調査報告書!K79=0,\"\",①定期調査報告書!K79)","v":""},null,null,"㎡"]
["【3．階別用途別床面積】",null,null,null,null,null,null,null,null,"（用途）",null,null,null,null,null,null,"(床面積)"]
[null,"【イ．階別用途別】",null,null,"（",{"$f":"IF(①定期調査報告書!H82=0,\"\",①定期調査報告書!H82)","v":""},null,"階）","(",{"$f":"IF(①定期調査報告書!L82=0,\"\",①定期調査報告書!L82)","v":"　"},null,null,null,null,null,null,"）（",{"$f":"IF(①定期調査報告書!V82=0,\"\",①定期調査報告書!V82)","v":""},null,null,null,null,null,"㎡)"]
[null,null,null,null,null,null,null,null,"(",{"$f":"IF(①定期調査報告書!L83=0,\"\",①定期調査報告書!L83)","v":"　"},null,null,null,null,null,null,"）（",{"$f":"IF(①定期調査報告書!V83=0,\"\",①定期調査報告書!V83)","v":""},null,null,null,null,null,"㎡)"]
[null,null,null,null,null,null,null,null,"(",{"$f":"IF(①定期調査報告書!L84=0,\"\",①定期調査報告書!L84)","v":"　"},null,null,null,null,null,null,"）（",{"$f":"IF(①定期調査報告書!V84=0,\"\",①定期調査報告書!V84)","v":""},null,null,null,null,null,"㎡)"]
[null,null,null,null,"（",{"$f":"IF(①定期調査報告書!H85=0,\"\",①定期調査報告書!H85)","v":""},null,"階）","(",{"$f":"IF(①定期調査報告書!L85=0,\"\",①定期調査報告書!L85)","v":"　"},null,null,null,null,null,null,"）（",{"$f":"IF(①定期調査報告書!V85=0,\"\",①定期調査報告書!V85)","v":""},null,null,null,null,null,"㎡)"]
[null,null,null,null,null,null,null,null,"(",{"$f":"IF(①定期調査報告書!L86=0,\"\",①定期調査報告書!L86)","v":"　"},null,null,null,null,null,null,"）（",{"$f":"IF(①定期調査報告書!V86=0,\"\",①定期調査報告書!V86)","v":""},null,null,null,null,null,"㎡)"]
[null,null,null,null,null,null,null,null,"(",{"$f":"IF(①定期調査報告書!L87=0,\"\",①定期調査報告書!L87)","v":"　　"},null,null,null,null,null,null,"）（",{"$f":"IF(①定期調査報告書!V87=0,\"\",①定期調査報告書!V87)","v":""},null,null,null,null,null,"㎡)"]
[null,null,null,null,"（",{"$f":"IF(①定期調査報告書!H88=0,\"\",①定期調査報告書!H88)","v":""},null,"階）","(",{"$f":"IF(①定期調査報告書!L88=0,\"\",①定期調査報告書!L88)","v":"　"},null,null,null,null,null,null,"）（",{"$f":"IF(①定期調査報告書!V88=0,\"\",①定期調査報告書!V88)","v":""},null,null,null,null,null,"㎡)"]
[null,null,null,null,null,null,null,null,"(",{"$f":"IF(①定期調査報告書!L89=0,\"\",①定期調査報告書!L89)","v":"　"},null,null,null,null,null,null,"）（",{"$f":"IF(①定期調査報告書!V89=0,\"\",①定期調査報告書!V89)","v":""},null,null,null,null,null,"㎡)"]
[null,null,null,null,null,null,null,null,"(",{"$f":"IF(①定期調査報告書!L90=0,\"\",①定期調査報告書!L90)","v":"　"},null,null,null,null,null,null,"）（",{"$f":"IF(①定期調査報告書!V90=0,\"\",①定期調査報告書!V90)","v":""},null,null,null,null,null,"㎡)"]
[null,null,null,null,"（",{"$f":"IF(①定期調査報告書!H91=0,\"\",①定期調査報告書!H91)","v":""},null,"階）","(",{"$f":"IF(①定期調査報告書!L91=0,\"\",①定期調査報告書!L91)","v":"　"},null,null,null,null,null,null,"）（",{"$f":"IF(①定期調査報告書!V91=0,\"\",①定期調査報告書!V91)","v":""},null,null,null,null,null,"㎡)"]
[null,null,null,null,null,null,null,null,"(",{"$f":"IF(①定期調査報告書!L92=0,\"\",①定期調査報告書!L92)","v":"　"},null,null,null,null,null,null,"）（",{"$f":"IF(①定期調査報告書!V92=0,\"\",①定期調査報告書!V92)","v":""},null,null,null,null,null,"㎡)"]
[null,null,null,null,null,null,null,null,"(",{"$f":"IF(①定期調査報告書!L93=0,\"\",①定期調査報告書!L93)","v":"　"},null,null,null,null,null,null,"）（",{"$f":"IF(①定期調査報告書!V93=0,\"\",①定期調査報告書!V93)","v":""},null,null,null,null,null,"㎡)"]
[null,null,null,null,"（",{"$f":"IF(①定期調査報告書!H94=0,\"\",①定期調査報告書!H94)","v":""},null,"階）","(",{"$f":"IF(①定期調査報告書!L94=0,\"\",①定期調査報告書!L94)","v":"　"},null,null,null,null,null,null,"）（",{"$f":"IF(①定期調査報告書!V94=0,\"\",①定期調査報告書!V94)","v":""},null,null,null,null,null,"㎡)"]
[null,null,null,null,null,null,null,null,"(",{"$f":"IF(①定期調査報告書!L95=0,\"\",①定期調査報告書!L95)","v":"　"},null,null,null,null,null,null,"）（",{"$f":"IF(①定期調査報告書!V95=0,\"\",①定期調査報告書!V95)","v":""},null,null,null,null,null,"㎡)"]
[null,null,null,null,null,null,null,null,"(",{"$f":"IF(①定期調査報告書!L96=0,\"\",①定期調査報告書!L96)","v":"　"},null,null,null,null,null,null,"）（",{"$f":"IF(①定期調査報告書!V96=0,\"\",①定期調査報告書!V96)","v":""},null,null,null,null,null,"㎡)"]
[null,"【ロ．用途別】",null,null,null,null,null,null,"(",{"$f":"IF(①定期調査報告書!L97=0,\"\",①定期調査報告書!L97)","v":"　"},null,null,null,null,null,null,"）（",{"$f":"IF(①定期調査報告書!V97=0,\"\",①定期調査報告書!V97)","v":""},null,null,null,null,null,"㎡)"]
[null,null,null,null,null,null,null,null,"(",{"$f":"IF(①定期調査報告書!L98=0,\"\",①定期調査報告書!L98)","v":"　"},null,null,null,null,null,null,"）（",{"$f":"IF(①定期調査報告書!V98=0,\"\",①定期調査報告書!V98)","v":""},null,null,null,null,null,"㎡)"]
[null,null,null,null,null,null,null,null,"(",{"$f":"IF(①定期調査報告書!L99=0,\"\",①定期調査報告書!L99)","v":"　"},null,null,null,null,null,null,"）（",{"$f":"IF(①定期調査報告書!V99=0,\"\",①定期調査報告書!V99)","v":""},null,null,null,null,null,"㎡)"]
["【4．性能検証法等の適用】",null,null,null,null,"耐火性能検証法",null,null,null,null,null,null,null,null,null,null,"防火区画検証法"]
[null,null,null,null,null,"区画避難安全検証法",null,null,null,null,"（",{"$f":"IF(①定期調査報告書!S101=0,\"\",①定期調査報告書!S101)","v":""},null,"階）",null,null,"階避難階安全検証法",null,null,null,null,"（",{"$f":"IF(①定期調査報告書!AE101=0,\"\",①定期調査報告書!AE101)","v":""},null,"階）"]
[null,null,null,null,null,"全館避難安全検証法"]
[null,null,null,null,null,"その他　　 （",null,null,{"$f":"IF(①定期調査報告書!O103=0,\"\",①定期調査報告書!O103)","v":""},null,null,null,null,null,null,null,null,null,null,null,null,null,null,null,null,null,"）"]
["【5．増築、改築、用途変更等の経過】"]
[null,null,{"$f":"IF(①定期調査報告書!C105=0,\"\",①定期調査報告書!C105)","v":"昭和･平成・令和"},{"$f":"IF(①定期調査報告書!I105=0,\"\",①定期調査報告書!I105)","v":""},"年",{"$f":"IF(①定期調査報告書!L105=0,\"\",①定期調査報告書!L105)","v":""},null,"月",{"$f":"IF(①定期調査報告書!O105=0,\"\",①定期調査報告書!O105)","v":""},null,"日","概要  （",null,{"$f":"IF(①定期調査報告書!U105=0,\"\",①定期調査報告書!U105)","v":""},null,null,null,null,null,null,null,null,null,null,null,null,"）"]
[null,null,{"$f":"IF(①定期調査報告書!C106=0,\"\",①定期調査報告書!C106)","v":"昭和･平成・令和"},{"$f":"IF(①定期調査報告書!I106=0,\"\",①定期調査報告書!I106)","v":""},"年",{"$f":"IF(①定期調査報告書!L106=0,\"\",①定期調査報告書!L106)","v":""},null,"月",{"$f":"IF(①定期調査報告書!O106=0,\"\",①定期調査報告書!O106)","v":""},null,"日","概要  （",null,{"$f":"IF(①定期調査報告書!U106=0,\"\",①定期調査報告書!U106)","v":""},null,null,null,null,null,null,null,null,null,null,null,null,"）"]
[null,null,{"$f":"IF(①定期調査報告書!C107=0,\"\",①定期調査報告書!C107)","v":"昭和･平成・令和"},{"$f":"IF(①定期調査報告書!I107=0,\"\",①定期調査報告書!I107)","v":""},"年",{"$f":"IF(①定期調査報告書!L107=0,\"\",①定期調査報告書!L107)","v":""},null,"月",{"$f":"IF(①定期調査報告書!O107=0,\"\",①定期調査報告書!O107)","v":""},null,"日","概要  （",null,{"$f":"IF(①定期調査報告書!U107=0,\"\",①定期調査報告書!U107)","v":""},null,null,null,null,null,null,null,null,null,null,null,null,"）"]
[null,null,{"$f":"IF(①定期調査報告書!C108=0,\"\",①定期調査報告書!C108)","v":"昭和･平成・令和"},{"$f":"IF(①定期調査報告書!I108=0,\"\",①定期調査報告書!I108)","v":""},"年",{"$f":"IF(①定期調査報告書!L108=0,\"\",①定期調査報告書!L108)","v":""},null,"月",{"$f":"IF(①定期調査報告書!O108=0,\"\",①定期調査報告書!O108)","v":""},null,"日","概要  （",null,{"$f":"IF(①定期調査報告書!U108=0,\"\",①定期調査報告書!U108)","v":""},null,null,null,null,null,null,null,null,null,null,null,null,"）"]
["【6．関連図書の整備状況】"]
[null,"【イ．確認に要した図書】",null,null,null,"有",null,"(","各階平面図あり）",null,null,null,null,null,"無"]
[null,"【ロ．確認済証】",null,null,null,"有",null,null,null,null,null,null,null,null,"無"]
[null,null,null,null,"交付番号",null,null,null,null,null,null,{"$f":"IF(①定期調査報告書!O112=0,\"\",①定期調査報告書!O112)","v":"昭和･平成・令和"},{"$f":"IF(①定期調査報告書!S112=0,\"\",①定期調査報告書!S112)","v":""},"年",{"$f":"IF(①定期調査報告書!V112=0,\"\",①定期調査報告書!V112)","v":""},"月",{"$f":"IF(①定期調査報告書!Y112=0,\"\",①定期調査報告書!Y112)","v":""},"日","第",{"$f":"IF(①定期調査報告書!AC112=0,\"\",①定期調査報告書!AC112)","v":""},null,null,null,null,null,"号"]
[null,null,null,null,"交付者",null,null,"建築主事",null,null,null,null,null,null,null,"（",{"$f":"IF(①定期調査報告書!Z113=0,\"\",①定期調査報告書!Z113)","v":""},null,null,null,null,null,null,null,"）"]
[null,"【ハ．完了検査に要した図書】",null,null,null,null,null,"有",null,null,"無"]
[null,"【ニ．検査済証】",null,null,null,null,null,"有",null,null,"無"]
[null,null,null,null,"交付番号",null,null,null,null,null,null,{"$f":"IF(①定期調査報告書!O116=0,\"\",①定期調査報告書!O116)","v":"昭和･平成・令和"},{"$f":"IF(①定期調査報告書!$S$116=0,\"\",①定期調査報告書!$S$116)","v":""},"年",{"$f":"IF(①定期調査報告書!V116=0,\"\",①定期調査報告書!V116)","v":""},"月",{"$f":"IF(①定期調査報告書!Y116=0,\"\",①定期調査報告書!Y116)","v":""},"日","第",{"$f":"IF(①定期調査報告書!AC116=0,\"\",①定期調査報告書!AC116)","v":""},null,null,null,null,null,"号"]
[null,null,null,null,"交付者",null,null,"建築主事",null,null,null,null,null,null,null,"（",{"$f":"IF(①定期調査報告書!Z117=0,\"\",①定期調査報告書!Z117)","v":""},null,null,null,null,null,null,null,"）"]
[null,"【ホ．維持保全に関する準則又は計画】",null,null,null,null,null,null,null,null,"有",null,"無"]
[null,"【ヘ．前回の調査に関する書類の写し】",null,null,null,null,null,null,null,null,"有",null,"無",null,"対象外"]
["【7．備考】",null,null,{"$f":"IF(①定期調査報告書!A121=0,\"\",①定期調査報告書!A121)","v":""}]
[]
[]
["（注意）\n 　この様式には、第三十六号の二の四様式に記入した内容と同一の内容を記入してください。なお、第一面の５欄の「ロ」及び「ニ」は第三十六号の二の四様式第三面の２欄から４欄において指摘があった項目について、第１面の７欄の「ハ」は同様式第４面に記入されたものについて、すべて記入してください。"]

{"sheet":"⑫資格者追加別紙概要書","index":15,"n_rows":43,"n_cols":26,"rows_kept":43,"cut":false,"hidden":false,"merged":[[4,21,4,24],[10,4,10,26],[8,4,8,26],[11,13,11,16],[4,3,4,6],[4,13,4,17],[5,21,5,24],[6,21,6,24],[7,4,7,26],[11,21,11,24],[19,21,19,24],[21,4,21,26],[11,4,11,7],[12,5,12,6],[12,8,12,10],[18,21,18,24],[20,21,20,24],[18,13,18,17],[14,5,14,7],[18,3,18,6],[14,13,14,15],[14,9,14,11],[13,4,13,25],[22,4,22,26],[27,4,27,26],[26,5,26,6],[24,4,24,26],[28,5,28,7],[25,13,25,16],[25,21,25,24],[25,4,25,7],[26,8,26,10],[38,4,38,26],[33,21,33,24],[34,21,34,24],[28,13,28,15],[36,4,36,26],[32,13,32,17],[35,4,35,26],[32,21,32,24],[32,3,32,6],[28,9,28,11],[39,21,39,24],[40,5,40,6],[42,5,42,7],[42,9,42,11],[42,13,42,15],[41,4,41,26],[40,8,40,10],[39,4,39,7],[39,13,39,16]]}
[null,null,null,null,null,null,null,null,null,null,null,null,null,null,null,null,null,null,null,null,null,null,null,"（別　紙）"]
[]
["(","その他の調査者）"]
[null,"【イ．資格等】"]
[null,null,"（",{"$f":"IF(②資格者追加別紙!K6=\"\",\"\",②資格者追加別紙!K6)","v":""},null,null,null,"）建築士",null,null,null,null,"（",{"$f":"IF(②資格者追加別紙!U6=\"\",\"\",②資格者追加別紙!U6)","v":""},null,null,null,null,null,"）　登録","第",{"$f":"IF(②資格者追加別紙!AD6=\"\",\"\",②資格者追加別紙!AD6)","v":""},null,null,null,"号"]
[null,null,null,"特定建築物調査員",null,null,null,null,null,null,null,null,null,null,null,null,null,null,null,null,"第",{"$f":"IF(②資格者追加別紙!AD7=\"\",\"\",②資格者追加別紙!AD7)","v":""},null,null,null,"号"]
[null,null,null,null,null,null,null,null,null,null,null,null,null,null,null,null,null,null,null,null,null,{"$f":"IF(②資格者追加別紙!AD8=\"\",\"\",②資格者追加別紙!AD8)","v":""}]
[null,"【ロ．氏名のフリガナ】",null,null,{"$f":"IF(②資格者追加別紙!J9=\"\",\"\",②資格者追加別紙!J9)","v":""}]
[null,"【ハ．氏名】",null,null,{"$f":"IF(②資格者追加別紙!J10=\"\",\"\",②資格者追加別紙!J10)","v":"　"}]
[]
[null,"【ニ．勤務先】",null,null,{"$f":"IF(②資格者追加別紙!J12=\"\",\"\",②資格者追加別紙!J12)","v":"　"}]
[null,null,null,"（",{"$f":"IF(②資格者追加別紙!K14=\"\",\"\",②資格者追加別紙!K14)","v":""},null,null,null,"）建築士事務所",null,null,null,"(",{"$f":"IF(②資格者追加別紙!U14=\"\",\"\",②資格者追加別紙!U14)","v":""},null,null,null,null,null,"）　知事登録","第",{"$f":"IF(②資格者追加別紙!AD14=0,\"\",②資格者追加別紙!AD14)","v":""},null,null,null,"号"]
[null,"【ホ．郵便番号】",null,null,"〒",{"$f":"IF(②資格者追加別紙!K15=\"\",\"\",②資格者追加別紙!K15)","v":""},null,"－",{"$f":"IF(②資格者追加別紙!N15=\"\",\"\",②資格者追加別紙!N15)","v":""}]
[null,"【へ．所在地】",null,null,{"$f":"IF(②資格者追加別紙!J16=\"\",\"\",②資格者追加別紙!J16)","v":""}]
[null,"【ト．電話番号】",null,null,"（",{"$f":"IF(②資格者追加別紙!K17=\"\",\"\",②資格者追加別紙!K17)","v":""},null,null,"）",{"$f":"IF(②資格者追加別紙!O17=\"\",\"\",②資格者追加別紙!O17)","v":""},null,null,"－",{"$f":"IF(②資格者追加別紙!S17=\"\",\"\",②資格者追加別紙!S17)","v":""}]
[]
["(","その他の調査者）"]
[null,"【イ．資格等】"]
[null,null,"（",{"$f":"IF(②資格者追加別紙!K21=\"\",\"\",②資格者追加別紙!K21)","v":""},null,null,null,"）建築士",null,null,null,null,"（",{"$f":"IF(②資格者追加別紙!U21=\"\",\"\",②資格者追加別紙!U21)","v":""},null,null,null,null,null,"）　登録","第",{"$f":"IF(②資格者追加別紙!AD21=0,\"\",②資格者追加別紙!AD21)","v":""},null,null,null,"号"]
[null,null,null,"特定建築物調査員",null,null,null,null,null,null,null,null,null,null,null,null,null,null,null,null,"第",{"$f":"IF(②資格者追加別紙!AD22=0,\"\",②資格者追加別紙!AD22)","v":""},null,null,null,"号"]
[null,null,null,null,null,null,null,null,null,null,null,null,null,null,null,null,null,null,null,null,null,{"$f":"IF(②資格者追加別紙!AD23=0,\"\",②資格者追加別紙!AD23)","v":""}]
[null,"【ロ．氏名のフリガナ】",null,null,{"$f":"IF(②資格者追加別紙!J24=\"\",\"\",②資格者追加別紙!J24)","v":""}]
[null,"【ハ．氏名】",null,null,{"$f":"IF(②資格者追加別紙!J25=\"\",\"\",②資格者追加別紙!J25)","v":"　"}]
[]
[null,"【ニ．勤務先】",null,null,{"$f":"IF(②資格者追加別紙!J27=\"\",\"\",②資格者追加別紙!J27)","v":"　"}]
[null,null,null,"（",{"$f":"IF(②資格者追加別紙!K29=\"\",\"\",②資格者追加別紙!K29)","v":""},null,null,null,"）建築士事務所",null,null,null,"(",{"$f":"IF(②資格者追加別紙!U29=\"\",\"\",②資格者追加別紙!U29)","v":""},null,null,null,null,null,"）　知事登録","第",{"$f":"IF(②資格者追加別紙!AD29=0,\"\",②資格者追加別紙!AD29)","v":""},null,null,null,"号"]
[null,"【ホ．郵便番号】",null,null,"〒",{"$f":"IF(②資格者追加別紙!K30=\"\",\"\",②資格者追加別紙!K30)","v":""},null,"－",{"$f":"IF(②資格者追加別紙!N30=\"\",\"\",②資格者追加別紙!N30)","v":""}]
[null,"【へ．所在地】",null,null,{"$f":"IF(②資格者追加別紙!J31=\"\",\"\",②資格者追加別紙!J31)","v":""}]
[null,"【ト．電話番号】",null,null,"（",{"$f":"IF(②資格者追加別紙!K32=\"\",\"\",②資格者追加別紙!K32)","v":""},null,null,"）",{"$f":"IF(②資格者追加別紙!O32=\"\",\"\",②資格者追加別紙!O32)","v":""},null,null,"－",{"$f":"IF(②資格者追加別紙!S32=\"\",\"\",②資格者追加別紙!S32)","v":""}]
[]
["(","その他の調査者）"]
[null,"【イ．資格等】"]
[null,null,"（",{"$f":"IF(②資格者追加別紙!K36=\"\",\"\",②資格者追加別紙!K36)","v":""},null,null,null,"）建築士",null,null,null,null,"（",{"$f":"IF(②資格者追加別紙!U36=\"\",\"\",②資格者追加別紙!U36)","v":""},null,null,null,null,null,"）　登録","第",{"$f":"IF(②資格者追加別紙!AD36=0,\"\",②資格者追加別紙!AD36)","v":""},null,null,null,"号"]
[null,null,null,"特定建築物調査員",null,null,null,null,null,null,null,null,null,null,null,null,null,null,null,null,"第",{"$f":"IF(②資格者追加別紙!AD37=0,\"\",②資格者追加別紙!AD37)","v":""},null,null,null,"号"]
[null,null,null,null,null,null,null,null,null,null,null,null,null,null,null,null,null,null,null,null,null,{"$f":"IF(②資格者追加別紙!AD38=0,\"\",②資格者追加別紙!AD38)","v":""}]
[null,"【ロ．氏名のフリガナ】",null,null,{"$f":"IF(②資格者追加別紙!J39=\"\",\"\",②資格者追加別紙!J39)","v":""}]
[null,"【ハ．氏名】",null,null,{"$f":"IF(②資格者追加別紙!J40=\"\",\"\",②資格者追加別紙!J40)","v":"　"}]
[]
[null,"【ニ．勤務先】",null,null,{"$f":"IF(②資格者追加別紙!J42=\"\",\"\",②資格者追加別紙!J42)","v":"　"}]
[null,null,null,"（",{"$f":"IF(②資格者追加別紙!K44=\"\",\"\",②資格者追加別紙!K44)","v":""},null,null,null,"）建築士事務所",null,null,null,"(",{"$f":"IF(②資格者追加別紙!U44=\"\",\"\",②資格者追加別紙!U44)","v":""},null,null,null,null,null,"）　知事登録","第",{"$f":"IF(②資格者追加別紙!AD44=\"\",\"\",②資格者追加別紙!AD44)","v":""},null,null,null,"号"]
[null,"【ホ．郵便番号】",null,null,"〒",{"$f":"IF(②資格者追加別紙!K45=\"\",\"\",②資格者追加別紙!K45)","v":""},null,"－",{"$f":"IF(②資格者追加別紙!N45=\"\",\"\",②資格者追加別紙!N45)","v":""}]
[null,"【へ．所在地】",null,null,{"$f":"IF(②資格者追加別紙!J46=\"\",\"\",②資格者追加別紙!J46)","v":""}]
[null,"【ト．電話番号】",null,null,"（",{"$f":"IF(②資格者追加別紙!K47=\"\",\"\",②資格者追加別紙!K47)","v":""},null,null,"）",{"$f":"IF(②資格者追加別紙!O47=\"\",\"\",②資格者追加別紙!O47)","v":""},null,null,"－",{"$f":"IF(②資格者追加別紙!S47=\"\",\"\",②資格者追加別紙!S47)","v":""}]

{"sheet":"改善結果報告書","index":16,"n_rows":35,"n_cols":17,"rows_kept":35,"cut":false,"hidden":false,"merged":[[0,1,0,16],[27,10,27,16],[25,4,25,9],[26,4,26,9],[27,4,27,9],[19,1,19,3],[20,4,20,9],[19,10,19,16],[20,10,20,16],[26,1,26,3],[24,10,24,16],[4,4,4,15],[19,4,19,9],[7,5,7,15],[13,5,13,6],[13,9,13,15],[30,1,32,5],[29,1,29,5],[25,10,25,16],[26,10,26,16],[30,11,32,16],[30,6,32,10],[29,11,29,16],[29,6,29,10],[2,3,2,4],[21,10,21,16],[22,1,22,3],[25,1,25,3],[21,4,21,9],[22,4,22,9],[23,4,23,9],[24,4,24,9],[22,10,22,16],[23,10,23,16],[9,5,9,14],[15,9,15,14],[15,5,15,6]]}
[null,"　　　改　善　結　果　報　告　書　（建築物）"]
[null,null,null,null,null,null,null,null,null,null,"令和",null,"年",null,"月",null,"日"]
[null,"特定行政庁",null,null,null,"様"]
[null,null,null,"建築物の名称"]
[]
[null,null,null,"所　有　者（管理者があるときは管理者）"]
[null,null,null,null,"住　所 （法人にあっては、主たる事務所の所在地）"]
[]
[null,null,null,null,"氏　名（法人にあっては、名称及び代表者氏名）"]
[]
[]
[null,null,null,"調　査　者　"]
[null,null,null,"　　調査受託事業所名"]
[null,null,null,null,"登録番号　　第",null,null,"号","名称"]
[null,null,null,"　　調査資格者名"]
[null,null,null,null,"登録番号　　第",null,null,"号","氏名"]
[]
[null,"標記建築物の定期調査報告書における改善すべき事項について、次のとおり改善したので報告します。"]
[]
[null,"改善すべき事項の種別",null,null,"改善すべき内容",null,null,null,null,null,"改善措置の内容"]
[]
[]
[null,"維持保全が悪い事項"]
[]
[]
[null,"建物の使用方法や維持管理に改善すべき事項あり、"]
[null,"防火・避難施設等が十分に機能していないもの"]
[]
[]
[null,"※　受　付　欄",null,null,null,null,"※　決　済　欄",null,null,null,null,"※　備　　考"]
[]
[]
[]
[null,"注意１　　※印の欄には記入しないでください。"]
[null,"　　　２　　この報告書は、（一財）石川県建築住宅センターに２部提出してください。"]

{"sheet":"改善内容","index":17,"n_rows":20,"n_cols":9,"rows_kept":20,"cut":false,"hidden":false,"merged":[[0,1,0,3],[2,5,2,7],[19,1,22,3],[1,1,2,3],[3,1,7,3],[16,1,17,2],[8,1,9,2],[11,1,14,3],[7,5,7,7],[8,5,8,7],[9,5,9,7],[10,5,10,7],[0,5,0,7],[5,5,5,7],[15,5,15,7],[18,5,18,7],[0,8,0,10],[1,5,1,7],[1,8,1,10],[3,5,3,7],[4,5,4,7],[2,8,2,10],[3,8,3,10],[4,8,4,10],[11,5,11,7],[12,5,12,7],[13,5,13,7],[14,5,14,7],[16,5,16,7],[27,8,27,10],[18,8,18,10],[19,8,19,10],[19,5,19,7],[20,5,20,7],[21,5,21,7],[22,5,22,7],[27,5,27,7],[23,5,23,7],[5,8,5,10],[7,8,7,10],[10,8,10,10],[6,5,6,7],[6,8,6,10],[8,8,8,10],[9,8,9,10],[13,8,13,10],[14,8,14,10],[11,8,11,10],[12,8,12,10],[28,5,28,7],[24,5,24,7],[28,8,28,10],[24,8,24,10],[20,8,20,10],[21,8,21,10],[22,8,22,10],[23,8,23,10],[17,5,17,7],[15,8,15,10],[16,8,16,10],[17,8,17,10]]}
[null,"改善すべき事項の種別",null,null,null,"改善すべき内容",null,null,"改善措置の内容"]
[null,"既存不適格事項"]
[]
[null,"　建築当時は関係法令に適合していたが、その後の法令改正に伴い現行の建築基準法令に不適合となった事項で、改修すれば防災上大きな効果のあるもの　　　　　　　　　　　"]
[]
[]
[]
[]
[null,"人命に関わる被害が\n予想される事項"]
[]
[]
[null,"　看板、広告塔及び外壁などが落下する恐れがあり、建築物に人命に関わる劣化等がある事項で、改修すれば防災上大きな効果のあるもの"]
[]
[]
[]
[]
[null,"　違反の恐れがある事項"]
[]
[]
[null,"　建築基準法令に適合しない仕様や材料による修繕や模様替えがなされているもの\n　無届で増築及び改築がなされているもの"]